Organisation Name,Purchase_Order_Number,Order_Date,Total_Value,Supplier_Name,Account_Name,Service
Rochdale Borough Council,d3002110,01/07/2019,"14,726.00",TOMAX BUILDING SERVICES LTD,MINOR BUILDING WORKS,EARLY HELP AND SCHOOLS
Rochdale Borough Council,d1083235,01/07/2019,"10,000.00",NO GRAFFITI LTD,CONTRACTED SERVICES,NEIGHBOURHOODS AND ENVIRONMENT
Rochdale Borough Council,d3002112,01/07/2019,"7,526.53",VODAFONE LTD,MINOR BUILDING WORKS,PROPERTY AND HIGHWAYS
Rochdale Borough Council,d2001543,01/07/2019,"7,007.50",SYSOP LTD,TRAINING,NEIGHBOURHOODS AND ENVIRONMENT
Rochdale Borough Council,x1017973,01/07/2019,"6,953.79",ROSS CARE,EQUIPMENT - GENERAL,EARLY HELP AND SCHOOLS
Rochdale Borough Council,d2001545,01/07/2019,"5,254.44",QA LTD,TRAINING,NEIGHBOURHOODS AND ENVIRONMENT
Rochdale Borough Council,d1083258,02/07/2019,"75,000.00",THE BOND BOARD LIMITED,PROJECTS,NEIGHBOURHOODS AND ENVIRONMENT
Rochdale Borough Council,s1024853,02/07/2019,"61,719.94",ROSS CARE,CONTRACTS,BETTER CARE FUND POOLED BUDGET
Rochdale Borough Council,s1024851,02/07/2019,"36,722.33",N COMPASS,CONTRACTS,BETTER CARE FUND POOLED BUDGET
Rochdale Borough Council,s1024852,02/07/2019,"36,722.33",N COMPASS,CONTRACTS,BETTER CARE FUND POOLED BUDGET
Rochdale Borough Council,d3002118,02/07/2019,"35,503.00",CROWTHER AND SHAW,PROPERTY - WORKS ELEMENT,PROPERTY AND HIGHWAYS
Rochdale Borough Council,e1028353,02/07/2019,"17,400.00",BOLTON IMPACT TRUST,OTHER EST - SEN PROVISION,EARLY HELP AND SCHOOLS
Rochdale Borough Council,e1028352,02/07/2019,"9,502.00",BOLTON MBC,OTHER EST - SEN PROVISION,EARLY HELP AND SCHOOLS
Rochdale Borough Council,s1024854,02/07/2019,"7,939.43",FUTURE DIRECTIONS CIC,SOCIAL SERVICES OTHER,ADULT CARE LCO FUNCTIONS
Rochdale Borough Council,s1024855,02/07/2019,"6,392.59",FUTURE DIRECTIONS CIC,SOCIAL SERVICES OTHER,ADULT CARE LCO FUNCTIONS
Rochdale Borough Council,d1083257,02/07/2019,"6,141.25",STEPPING STONE PROJECTS,PROJECTS,NEIGHBOURHOODS AND ENVIRONMENT
Rochdale Borough Council,d2001554,03/07/2019,"84,907.23",SPECIALIST COMPUTER CENTRES PLC,ACTIVITIES,NEIGHBOURHOODS AND ENVIRONMENT
Rochdale Borough Council,d3002120,03/07/2019,"55,248.00",COMPASS MINERALS UK LIMITED,MAINTENANCE,PROPERTY AND HIGHWAYS
Rochdale Borough Council,ph103741,03/07/2019,"10,800.00",THE PENNINE ACUTE HOSPITALS NHS TRUST,PH OTHER CONTRACTS,PUBLIC HEALTH
Rochdale Borough Council,x1017991,03/07/2019,"7,200.00",NOMS AGENCY,SERVICE LEVEL AGREEMENTS,CHILDREN�S SOCIAL CARE
Rochdale Borough Council,d1083275,03/07/2019,"6,237.00",ROCHDALE BOROUGH SHOPMOBILITY,GRANTS TO THE VOLUNTARY SECTOR,ECONOMY DIRECTORATE
Rochdale Borough Council,d1083271,03/07/2019,"6,086.25",JGM AGENCY,PUBLICITY,NEIGHBOURHOODS AND ENVIRONMENT
Rochdale Borough Council,s1024859,03/07/2019,"5,755.26",UPS BUILDING AND MAINTENANCE LTD,MINOR BUILDING WORKS,ADULT CARE LCO FUNCTIONS
Rochdale Borough Council,s1024861,03/07/2019,"5,597.97",UPS BUILDING AND MAINTENANCE LTD,MINOR BUILDING WORKS,ADULT CARE LCO FUNCTIONS
Rochdale Borough Council,s1024865,03/07/2019,"5,038.96",UPS BUILDING AND MAINTENANCE LTD,MINOR BUILDING WORKS,ADULT CARE LCO FUNCTIONS
Rochdale Borough Council,x1017993,04/07/2019,"300,000.00",OLDHAM COUNCIL,CONTRACTED SERVICES,CHILDREN�S SOCIAL CARE
Rochdale Borough Council,x1017994,04/07/2019,"51,364.00",OLDHAM COUNCIL,CONTRACTED SERVICES,CHILDREN�S SOCIAL CARE
Rochdale Borough Council,f1008091,04/07/2019,"7,880.00",TRIAD FABRICATIONS LIMITED,ELECTION MATERIALS,RESOURCES
Rochdale Borough Council,ph103749,05/07/2019,"52,482.91",NHS HEYWOOD MIDDLETON AND ROCHDALE CCG,ACTIVITIES,PUBLIC HEALTH
Rochdale Borough Council,d2001562,05/07/2019,"7,280.00",TAMESIDE METROPOLITAN BOROUGH COUNCIL,TRAINING,RESOURCES
Rochdale Borough Council,f1008092,05/07/2019,"5,000.00",TOPMARK CLAIMS MANAGEMENT LTD,TRANSACTIONS-EXPENDITURE,RESOURCES
Rochdale Borough Council,s1024876,08/07/2019,"488,440.00",THE PENNINE ACUTE HOSPITALS NHS TRUST,INDEPENDENT UNITS,BETTER CARE FUND POOLED BUDGET
Rochdale Borough Council,e1028384,08/07/2019,"343,377.23",INSPIREDSPACES ROCHDALE PROJECT CO1 LTD,PFI SCHEMES RPIX,EARLY HELP AND SCHOOLS
Rochdale Borough Council,d3002139,08/07/2019,"126,511.89",HOPWOOD ELECTRICAL SERVICES,MINOR BUILDING WORKS,EARLY HELP AND SCHOOLS
Rochdale Borough Council,d1083325,08/07/2019,"71,939.00",THE SANCTUARY TRUST,GRANTS TO THE VOLUNTARY SECTOR,NEIGHBOURHOODS AND ENVIRONMENT
Rochdale Borough Council,s1024881,08/07/2019,"23,100.00",CHERISH UK LTD,HOME CARE - ADULT SERVICES,ADULT CARE LCO FUNCTIONS
Rochdale Borough Council,s1024882,08/07/2019,"18,434.50",POLLOCK LIFTS,MINOR BUILDING WORKS,ADULT CARE LCO FUNCTIONS
Rochdale Borough Council,d3002142,08/07/2019,"16,336.00",ABM LANCASHIRE LIMITED,MINOR BUILDING WORKS,EARLY HELP AND SCHOOLS
Rochdale Borough Council,s1024878,08/07/2019,"15,796.39",POLLOCK LIFTS,TRANSACTIONS-EXPENDITURE,ADULT CARE LCO FUNCTIONS
Rochdale Borough Council,s1024877,08/07/2019,"10,228.52",POLLOCK LIFTS,MINOR BUILDING WORKS,ADULT CARE LCO FUNCTIONS
Rochdale Borough Council,d1083314,08/07/2019,"9,649.35",GO PLANT LIMITED,TRANSACTIONS-EXPENDITURE,NEIGHBOURHOODS AND ENVIRONMENT
Rochdale Borough Council,d3002147,08/07/2019,"7,250.00",F BRIERLEY & SON LIMITED,PROPERTY - WORKS ELEMENT,PROPERTY AND HIGHWAYS
Rochdale Borough Council,e1028391,09/07/2019,"33,600.00",POSITIVE STEPS,EXTERNALLY MANAGED FUNDS,EARLY HELP AND SCHOOLS
Rochdale Borough Council,x1018034,09/07/2019,"13,310.84",ROSS CARE,EQUIPMENT - GENERAL,EARLY HELP AND SCHOOLS
Rochdale Borough Council,d3002154,09/07/2019,"12,449.34",ENCOME ENERGY PERFORMANCE UK LTD,ENERGY MANAGEMENT,PROPERTY AND HIGHWAYS
Rochdale Borough Council,ph103754,09/07/2019,"9,832.16",RIS PRODUCTS LTD,CONTRACTED SERVICES,PUBLIC HEALTH
Rochdale Borough Council,ph103752,09/07/2019,"7,855.19",ROCHDALE HOUSING INITIATIVE,EQUIPMENT - GENERAL,PUBLIC HEALTH
Rochdale Borough Council,d1083331,09/07/2019,"7,000.00",G AND A TAYLOR HOTELS LTD,ACCOMMODATION,NEIGHBOURHOODS AND ENVIRONMENT
Rochdale Borough Council,d1083332,09/07/2019,"7,000.00",G AND A TAYLOR HOTELS LTD,ACCOMMODATION,NEIGHBOURHOODS AND ENVIRONMENT
Rochdale Borough Council,d1083333,09/07/2019,"7,000.00",G AND A TAYLOR HOTELS LTD,ACCOMMODATION,NEIGHBOURHOODS AND ENVIRONMENT
Rochdale Borough Council,d1083334,09/07/2019,"7,000.00",G AND A TAYLOR HOTELS LTD,ACCOMMODATION,NEIGHBOURHOODS AND ENVIRONMENT
Rochdale Borough Council,d3002158,10/07/2019,"177,996.00",JACKSON JACKSON AND SONS LTD,MINOR BUILDING WORKS,EARLY HELP AND SCHOOLS
Rochdale Borough Council,e1028408,10/07/2019,"51,000.00",BARNARDOS,SUBSCRIPTIONS,EARLY HELP AND SCHOOLS
Rochdale Borough Council,d1083388,10/07/2019,"40,200.00",SSI SCHAEFER LIMITED,PURCHASE OF FURNITURE AND EQUIPMENT,NEIGHBOURHOODS AND ENVIRONMENT
Rochdale Borough Council,d1083367,10/07/2019,"35,886.00",STEPPING STONE PROJECTS,PROJECTS,NEIGHBOURHOODS AND ENVIRONMENT
Rochdale Borough Council,d1083379,10/07/2019,"6,068.00",OTIS LTD,REPAIRS & ALTS OF BUILDINGS,NEIGHBOURHOODS AND ENVIRONMENT
Rochdale Borough Council,s1024891,10/07/2019,"5,965.45",UPS BUILDING AND MAINTENANCE LTD,MINOR BUILDING WORKS,ADULT CARE LCO FUNCTIONS
Rochdale Borough Council,s1024890,10/07/2019,"5,759.16",UPS BUILDING AND MAINTENANCE LTD,MINOR BUILDING WORKS,ADULT CARE LCO FUNCTIONS
Rochdale Borough Council,r1002172,11/07/2019,"45,068.00",THE CREATIVE CORE GROUP LTD,CONSULTANTS FEES,ECONOMY DIRECTORATE
Rochdale Borough Council,d3002173,11/07/2019,"7,270.00",HBL ASSOCIATES LTD,CONSULTANT FEES,PROPERTY AND HIGHWAYS
Rochdale Borough Council,ph103760,11/07/2019,"6,617.93",BRAHM FUNDCO 1 LTD,RENTS,PUBLIC HEALTH
Rochdale Borough Council,e1028425,12/07/2019,"707,827.52",AXIOM EDUCATION ROCHDALE LIMITED,PFI SCHEMES RPIX,EARLY HELP AND SCHOOLS
Rochdale Borough Council,e1028424,12/07/2019,"419,536.95",INSPIREDSPACES ROCHDALE PROJECTCO2 LTD,PFI SCHEMES RPIX,EARLY HELP AND SCHOOLS
Rochdale Borough Council,f1008109,12/07/2019,"82,782.33",MANCHESTER CITY COUNCIL,PROFESSIONAL FEES,RESOURCES
Rochdale Borough Council,ph103763,12/07/2019,"23,439.46",BIG LIFE CENTRES,CONTRACTED SERVICES,PUBLIC HEALTH
Rochdale Borough Council,f1008105,12/07/2019,"18,131.54",MANCHESTER CITY COUNCIL,PROFESSIONAL FEES,RESOURCES
Rochdale Borough Council,f1008104,12/07/2019,"12,635.52",MANCHESTER CITY COUNCIL,FEES / COMMISSION,RESOURCES
Rochdale Borough Council,f1008108,12/07/2019,"9,068.32",MANCHESTER CITY COUNCIL,FEES / COMMISSION,RESOURCES
Rochdale Borough Council,d2001576,12/07/2019,"5,378.84",PHOENIX SOFTWARE LIMITED,SOFTWARE,NEIGHBOURHOODS AND ENVIRONMENT
Rochdale Borough Council,d3002179,15/07/2019,"257,617.43",J C MILLS & SON LIMITED,MINOR BUILDING WORKS,EARLY HELP AND SCHOOLS
Rochdale Borough Council,s1024904,15/07/2019,"23,100.00",CHERISH UK LTD,HOME CARE - ADULT SERVICES,ADULT CARE LCO FUNCTIONS
Rochdale Borough Council,f1008112,15/07/2019,"19,043.49",NORTHGATE PUBLIC SERVICES UK LTD,SOFTWARE,RESOURCES
Rochdale Borough Council,s1024914,15/07/2019,"7,527.48",UPS BUILDING AND MAINTENANCE LTD,MINOR BUILDING WORKS,ADULT CARE LCO FUNCTIONS
Rochdale Borough Council,s1024909,15/07/2019,"6,067.46",UPS BUILDING AND MAINTENANCE LTD,MINOR BUILDING WORKS,ADULT CARE LCO FUNCTIONS
Rochdale Borough Council,s1024911,15/07/2019,"5,298.94",UPS BUILDING AND MAINTENANCE LTD,MINOR BUILDING WORKS,ADULT CARE LCO FUNCTIONS
Rochdale Borough Council,s1024908,15/07/2019,"5,260.17",UPS BUILDING AND MAINTENANCE LTD,TRANSACTIONS-EXPENDITURE,ADULT CARE LCO FUNCTIONS
Rochdale Borough Council,s1024903,15/07/2019,"5,244.34",QUALIA CARE LTD,RESIDENTIAL LONG TERM,ADULT CARE LCO FUNCTIONS
Rochdale Borough Council,s1024919,16/07/2019,"85,114.33",ROSS CARE,CONTRACTS,BETTER CARE FUND POOLED BUDGET
Rochdale Borough Council,r1002177,16/07/2019,"56,000.00",LINK4LIFE CHARITY,CONSULTANTS FEES,ECONOMY DIRECTORATE
Rochdale Borough Council,r1002176,16/07/2019,"35,000.00",LINK4LIFE CHARITY,CONSULTANTS FEES,ECONOMY DIRECTORATE
Rochdale Borough Council,e1028444,16/07/2019,"34,510.80",AXIOM EDUCATION ROCHDALE LIMITED,MEALS,EARLY HELP AND SCHOOLS
Rochdale Borough Council,d1083432,16/07/2019,"30,861.00",STANDARD FUEL OILS,TRANSACTIONS-EXPENDITURE,NEIGHBOURHOODS AND ENVIRONMENT
Rochdale Borough Council,d3002189,16/07/2019,"20,000.00",AECOM LIMITED,ROADWORKS,PROPERTY AND HIGHWAYS
Rochdale Borough Council,d1083425,16/07/2019,"17,552.50",GREENFINGERS LANDSCAPE LTD,CONTRACTS,NEIGHBOURHOODS AND ENVIRONMENT
Rochdale Borough Council,d1083428,16/07/2019,"15,315.00",LINK4LIFE CHARITY,ACTIVITIES,NEIGHBOURHOODS AND ENVIRONMENT
Rochdale Borough Council,d3002195,16/07/2019,"9,475.00",TRANSPORT FOR GREATER MANCHESTER,MINOR BUILDING WORKS,PROPERTY AND HIGHWAYS
Rochdale Borough Council,d1083427,16/07/2019,"9,039.72",NORTHGATE VEHICLE HIRE LIMITED,TRANSACTIONS-EXPENDITURE,NEIGHBOURHOODS AND ENVIRONMENT
Rochdale Borough Council,d1083429,16/07/2019,"9,000.00",PIPER MUSIC MANAGEMENT LTD,ACTIVITIES,NEIGHBOURHOODS AND ENVIRONMENT
Rochdale Borough Council,s1024922,16/07/2019,"7,248.19",FUTURE DIRECTIONS CIC,SOCIAL SERVICES OTHER,ADULT CARE LCO FUNCTIONS
Rochdale Borough Council,s1024921,16/07/2019,"6,947.32",FUTURE DIRECTIONS CIC,SOCIAL SERVICES OTHER,ADULT CARE LCO FUNCTIONS
Rochdale Borough Council,s1024920,16/07/2019,"6,851.79",FUTURE DIRECTIONS CIC,SOCIAL SERVICES OTHER,ADULT CARE LCO FUNCTIONS
Rochdale Borough Council,s1024923,16/07/2019,"6,305.25",FUTURE DIRECTIONS CIC,SOCIAL SERVICES OTHER,ADULT CARE LCO FUNCTIONS
Rochdale Borough Council,d3002211,17/07/2019,"72,374.48",J C MILLS & SON LIMITED,MINOR BUILDING WORKS,EARLY HELP AND SCHOOLS
Rochdale Borough Council,s1024927,17/07/2019,"69,442.55",ROSS CARE,CONTRACTS,BETTER CARE FUND POOLED BUDGET
Rochdale Borough Council,d1083440,17/07/2019,"47,805.00",RUSHTONS DEVELOPMENTS LTD,PROPERTY REFURBISHMENT (HOUSING),NEIGHBOURHOODS AND ENVIRONMENT
Rochdale Borough Council,r1002178,17/07/2019,"45,823.32",ROCHDALE DEVELOPMENT AGENCY,BASIC SALARIES,ECONOMY DIRECTORATE
Rochdale Borough Council,d3002210,17/07/2019,"26,396.91",J C MILLS & SON LIMITED,REPAIRS & ALTS OF BUILDINGS,EARLY HELP AND SCHOOLS
Rochdale Borough Council,d3002201,17/07/2019,"18,101.00",NORTHERN INSULATION CONTRACTORS UK LTD,MINOR BUILDING WORKS,EARLY HELP AND SCHOOLS
Rochdale Borough Council,r1002179,17/07/2019,"15,000.00",MANCHESTER METROPOLITAN UNIVERSITY,CONSULTANTS FEES,ECONOMY DIRECTORATE
Rochdale Borough Council,d1083453,17/07/2019,"11,764.01",EDF ENERGY 1 LIMITED,ELECTRICITY,NEIGHBOURHOODS AND ENVIRONMENT
Rochdale Borough Council,d3002197,17/07/2019,"9,295.00",GTM ELECTRICAL SERVICES LIMITED,MINOR BUILDING WORKS,PROPERTY AND HIGHWAYS
Rochdale Borough Council,d3002209,17/07/2019,"8,872.53",CANAL AND RIVER TRUST,REPAIRS & ALTS OF BUILDINGS,PROPERTY AND HIGHWAYS
Rochdale Borough Council,d3002198,17/07/2019,"7,642.00",GTM ELECTRICAL SERVICES LIMITED,MINOR BUILDING WORKS,PROPERTY AND HIGHWAYS
Rochdale Borough Council,d1083449,17/07/2019,"5,000.00",247 HOTEL,ACCOMMODATION,NEIGHBOURHOODS AND ENVIRONMENT
Rochdale Borough Council,e1028460,18/07/2019,"189,188.00",BELMONT SCHOOL LIMITED,OTHER LA`S - SEN PROVISION,EARLY HELP AND SCHOOLS
Rochdale Borough Council,x1018075,18/07/2019,"89,714.00",WIGAN BC,EBD (EMOT & BEHAV DIFF) PLACEMENTS,CHILDREN�S SOCIAL CARE
Rochdale Borough Council,x1018079,18/07/2019,"75,900.00",OLDHAM COUNCIL,CONTRACTED SERVICES,EARLY HELP AND SCHOOLS
Rochdale Borough Council,f1008131,18/07/2019,"60,000.00",CAPITA BUSINESS SERVICES LIMITED,SOFTWARE,RESOURCES
Rochdale Borough Council,d1083461,18/07/2019,"55,717.16",TRUST FORD BARNSLEY,PURCHASE OF VEHICLES,NEIGHBOURHOODS AND ENVIRONMENT
Rochdale Borough Council,d3002215,18/07/2019,"49,635.00",LAMBERT SMITH HAMPTON GROUP LTD,MINOR BUILDING WORKS,ECONOMY DIRECTORATE
Rochdale Borough Council,r1002184,18/07/2019,"33,100.00",WSP LTD UK,CONSULTANTS FEES,ECONOMY DIRECTORATE
Rochdale Borough Council,ph103778,18/07/2019,"30,000.00",LINK4LIFE CHARITY,LINK 4 LIFE CONTRACT,PUBLIC HEALTH
Rochdale Borough Council,r1002180,18/07/2019,"25,193.38",BRAHM FUNDCO 2 LTD,PFI SCHEMES RPI,ECONOMY DIRECTORATE
Rochdale Borough Council,e1028461,18/07/2019,"23,744.00",BELMONT SCHOOL LIMITED,OTHER LA`S - SEN PROVISION,EARLY HELP AND SCHOOLS
Rochdale Borough Council,r1002181,18/07/2019,"22,691.72",BRAHM FUNDCO 2 LTD,PFI SCHEMES RPI,ECONOMY DIRECTORATE
Rochdale Borough Council,r1002185,18/07/2019,"19,000.00",WSP LTD UK,CONSULTANTS FEES,ECONOMY DIRECTORATE
Rochdale Borough Council,d3002212,18/07/2019,"18,000.00",UNITY PARTNERSHIP LTD,ROADWORKS,PROPERTY AND HIGHWAYS
Rochdale Borough Council,f1008129,18/07/2019,"8,553.43",REDACTED - PERSONAL DATA,ELECTION MATERIALS,RESOURCES
Rochdale Borough Council,d1083465,18/07/2019,"6,322.06",DIRECT TYRE MANAGEMENT LTD,TYRES,NEIGHBOURHOODS AND ENVIRONMENT
Rochdale Borough Council,d3002218,19/07/2019,"92,681.65",C E S LTD,MINOR BUILDING WORKS,EARLY HELP AND SCHOOLS
Rochdale Borough Council,d3002216,19/07/2019,"85,510.41",H BELL AND SONS ROCHDALE LTD,MINOR BUILDING WORKS,EARLY HELP AND SCHOOLS
Rochdale Borough Council,d2001602,19/07/2019,"48,750.00",GRAVITAS RECRUITMENT GROUP,CAPITAL - STAFFING AGENCY PAYMENTS,NEIGHBOURHOODS AND ENVIRONMENT
Rochdale Borough Council,r1002188,19/07/2019,"20,000.00",REALM LTD,CONSULTANTS FEES,ECONOMY DIRECTORATE
Rochdale Borough Council,ph103779,19/07/2019,"13,035.71",TURNING POINT,PH OTHER CONTRACTS,PUBLIC HEALTH
Rochdale Borough Council,e1028469,19/07/2019,"11,703.00",WATERLOO LODGE SCHOOL,OTHER LA`S - SEN PROVISION,EARLY HELP AND SCHOOLS
Rochdale Borough Council,s1024934,22/07/2019,"13,101.56",ROCHDALE HEALTH ALLIANCE,SERVICE LEVEL AGREEMENTS,COMMISSIONING AND STATUTORY
Rochdale Borough Council,r1002189,22/07/2019,"10,480.00",J A CRYER EXCAVATION & GROUNDWORK CONTRACTORS LTD,ENVIRONMENTAL WORKS LANDSCAPE,ECONOMY DIRECTORATE
Rochdale Borough Council,d2001603,22/07/2019,"6,118.98",PHOENIX SOFTWARE LIMITED,SOFTWARE,NEIGHBOURHOODS AND ENVIRONMENT
Rochdale Borough Council,d2001613,23/07/2019,"72,900.00",BLACKPOOL  COUNCIL,SOFTWARE,NEIGHBOURHOODS AND ENVIRONMENT
Rochdale Borough Council,ph103784,23/07/2019,"10,000.00",SALFORD CITY COUNCIL,AGMA,NEIGHBOURHOODS AND ENVIRONMENT
Rochdale Borough Council,s1024938,23/07/2019,"9,250.00",PENNINE CARE NHS,RENTS,ADULT CARE LCO FUNCTIONS
Rochdale Borough Council,s1024943,23/07/2019,"7,464.09",UPS BUILDING AND MAINTENANCE LTD,MINOR BUILDING WORKS,ADULT CARE LCO FUNCTIONS
Rochdale Borough Council,d1083516,23/07/2019,"6,750.00",BROXAP LIMITED,PURCHASE OF FURNITURE AND EQUIPMENT,NEIGHBOURHOODS AND ENVIRONMENT
Rochdale Borough Council,s1024940,23/07/2019,"5,973.00",STANNAH LIFT SERVICES LTD,MINOR BUILDING WORKS,ADULT CARE LCO FUNCTIONS
Rochdale Borough Council,d3002239,23/07/2019,"5,600.75",C E S LTD,MINOR BUILDING WORKS,EARLY HELP AND SCHOOLS
Rochdale Borough Council,s1024941,23/07/2019,"5,115.00",STANNAH LIFT SERVICES LTD,MINOR BUILDING WORKS,ADULT CARE LCO FUNCTIONS
Rochdale Borough Council,d3002240,24/07/2019,"389,065.54",COMMUNITY LIGHTING PARTNERSHIP ROCHDALE LTD,PFI SCHEMES RPIX,PROPERTY AND HIGHWAYS
Rochdale Borough Council,d2001618,24/07/2019,"27,200.00",GRAVITAS RECRUITMENT GROUP,CAPITAL - STAFFING AGENCY PAYMENTS,NEIGHBOURHOODS AND ENVIRONMENT
Rochdale Borough Council,e1028491,24/07/2019,"11,123.75",AD MODULAR LTD,ARCHITECTS FEES,EARLY HELP AND SCHOOLS
Rochdale Borough Council,d3002245,24/07/2019,"9,128.11",JONES LANG LASALLE LTD,MINOR BUILDING WORKS,ECONOMY DIRECTORATE
Rochdale Borough Council,e1028488,24/07/2019,"6,501.50",WRIGLEYS SOLICITORS LLP,LEGAL SERVICES EXTERNAL,EARLY HELP AND SCHOOLS
Rochdale Borough Council,s1024955,24/07/2019,"6,395.66",UPS BUILDING AND MAINTENANCE LTD,TRANSACTIONS-EXPENDITURE,ADULT CARE LCO FUNCTIONS
Rochdale Borough Council,f1008136,24/07/2019,"6,271.03",HEALTH MANAGEMENT LIMITED,OCCUPATIONAL HEALTH,RESOURCES
Rochdale Borough Council,s1024957,24/07/2019,"6,070.09",UPS BUILDING AND MAINTENANCE LTD,TRANSACTIONS-EXPENDITURE,ADULT CARE LCO FUNCTIONS
Rochdale Borough Council,s1024953,24/07/2019,"5,934.51",UPS BUILDING AND MAINTENANCE LTD,MINOR BUILDING WORKS,ADULT CARE LCO FUNCTIONS
Rochdale Borough Council,s1024956,24/07/2019,"5,345.92",UPS BUILDING AND MAINTENANCE LTD,TRANSACTIONS-EXPENDITURE,ADULT CARE LCO FUNCTIONS
Rochdale Borough Council,f1008141,24/07/2019,"5,000.00",MHR,PROFESSIONAL FEES,RESOURCES
Rochdale Borough Council,ph103791,25/07/2019,"36,725.57",TURNING POINT,CONTRACTED SERVICES,PUBLIC HEALTH
Rochdale Borough Council,ph103790,25/07/2019,"19,994.00",TURNING POINT,PH OTHER CONTRACTS,PUBLIC HEALTH
Rochdale Borough Council,r1002195,25/07/2019,"19,200.00",POOLE DICK ASSOCIATES,CONSULTANTS FEES,ECONOMY DIRECTORATE
Rochdale Borough Council,ph103793,25/07/2019,"16,732.00",TURNING POINT,CONTRACTED SERVICES,PUBLIC HEALTH
Rochdale Borough Council,s1024983,25/07/2019,"10,217.38",POLLOCK LIFTS,MINOR BUILDING WORKS,ADULT CARE LCO FUNCTIONS
Rochdale Borough Council,s1024977,25/07/2019,"6,390.00",ADAPT BUILDING SERVICES LTD,MINOR BUILDING WORKS,ADULT CARE LCO FUNCTIONS
Rochdale Borough Council,s1024966,25/07/2019,"6,012.48",UPS BUILDING AND MAINTENANCE LTD,TRANSACTIONS-EXPENDITURE,ADULT CARE LCO FUNCTIONS
Rochdale Borough Council,s1024965,25/07/2019,"5,801.56",UPS BUILDING AND MAINTENANCE LTD,MINOR BUILDING WORKS,ADULT CARE LCO FUNCTIONS
Rochdale Borough Council,d1083556,26/07/2019,"21,450.00",DOBSON UK LTD,EQUIPMENT - GENERAL,NEIGHBOURHOODS AND ENVIRONMENT
Rochdale Borough Council,s1024987,26/07/2019,"19,114.50",POLLOCK LIFTS,MINOR BUILDING WORKS,ADULT CARE LCO FUNCTIONS
Rochdale Borough Council,ph103795,26/07/2019,"12,350.00",THE PENNINE ACUTE HOSPITALS NHS TRUST,PH OTHER CONTRACTS,PUBLIC HEALTH
Rochdale Borough Council,f1008147,26/07/2019,"6,600.00",GATENBY SANDERSON,RECRUITMENT AGENCY FEES,RESOURCES
Rochdale Borough Council,ph103794,26/07/2019,"5,548.00",TURNING POINT,PH OTHER CONTRACTS,PUBLIC HEALTH
Rochdale Borough Council,ph103798,29/07/2019,"6,524.00",TURNING POINT,CONTRACTED SERVICES,PUBLIC HEALTH
Rochdale Borough Council,d3002262,30/07/2019,"116,352.00",W H GOOD LIMITED,MINOR BUILDING WORKS,EARLY HELP AND SCHOOLS
Rochdale Borough Council,d1083589,30/07/2019,"71,500.00",THE BOND BOARD LIMITED,PROJECTS,NEIGHBOURHOODS AND ENVIRONMENT
Rochdale Borough Council,r1002199,30/07/2019,"45,000.00",MONDREM LTD,CONSULTANT FEES,ECONOMY DIRECTORATE
Rochdale Borough Council,d2001633,30/07/2019,"31,200.00",GRAVITAS RECRUITMENT GROUP,CAPITAL - STAFFING AGENCY PAYMENTS,NEIGHBOURHOODS AND ENVIRONMENT
Rochdale Borough Council,s1024993,30/07/2019,"23,250.00",PETRUS,SERVICE LEVEL AGREEMENTS,ADULT CARE LCO FUNCTIONS
Rochdale Borough Council,s1024994,30/07/2019,"23,250.00",PETRUS,SERVICE LEVEL AGREEMENTS,ADULT CARE LCO FUNCTIONS
Rochdale Borough Council,e1028515,30/07/2019,"21,000.00",BALTIMORE CONSULTING LTD,AGENCY STAFF,EARLY HELP AND SCHOOLS
Rochdale Borough Council,d1083581,30/07/2019,"10,000.00",LINK4LIFE CHARITY,ACTIVITIES,NEIGHBOURHOODS AND ENVIRONMENT
Rochdale Borough Council,d3002264,30/07/2019,"7,502.00",J C DECAUX UK LTD,MINOR BUILDING WORKS,ECONOMY DIRECTORATE
Rochdale Borough Council,d1083579,30/07/2019,"7,201.50",A J COCKER ASSOCIATES LIMITED,CONDITION SURVEYS,NEIGHBOURHOODS AND ENVIRONMENT
Rochdale Borough Council,d3002263,30/07/2019,"7,000.00",ABBEY ARCHITECTURAL IRONMONGERY CO LTD,PROPERTY - WORKS ELEMENT,PROPERTY AND HIGHWAYS
Rochdale Borough Council,d1083583,30/07/2019,"6,708.00",MANCHESTER YOUNG PEOPLES THEATRE,EVENTS,NEIGHBOURHOODS AND ENVIRONMENT
Rochdale Borough Council,d3002269,31/07/2019,"87,543.81",COMPASS MINERALS UK LIMITED,MATERIAL - GENERAL,PROPERTY AND HIGHWAYS
Rochdale Borough Council,d1083601,31/07/2019,"16,260.00",GROUNDWORK LANDSCAPES LIMITED,PURCHASE OF FURNITURE AND EQUIPMENT,NEIGHBOURHOODS AND ENVIRONMENT
Rochdale Borough Council,d3002271,31/07/2019,"9,128.11",B C REAL ESTATES LTD,MINOR BUILDING WORKS,ECONOMY DIRECTORATE
Rochdale Borough Council,d1083597,31/07/2019,"5,224.00",PLATINUM SECURITY AND EVENTS LTD,ACTIVITIES,NEIGHBOURHOODS AND ENVIRONMENT
Rochdale Borough Council,f1008160,31/07/2019,"5,000.00",THE COTSWOLD GROUP,INPUT VAT -  ADJUSTMENTS,RESOURCES
Rochdale Borough Council,d1083627,01/08/2019,"38,857.00",MANCHESTER CITY COUNCIL,AGMA,NEIGHBOURHOODS AND ENVIRONMENT
Rochdale Borough Council,x1018178,01/08/2019,"30,000.00",GATENBY SANDERSON,TRAINING,CHILDREN�S SOCIAL CARE
Rochdale Borough Council,d3002281,01/08/2019,"28,967.39",H BELL AND SONS ROCHDALE LTD,MINOR BUILDING WORKS,EARLY HELP AND SCHOOLS
Rochdale Borough Council,s1025001,01/08/2019,"15,721.67",ROCHDALE HEALTH ALLIANCE,OTHER LA`S - SEN PROVISION,COMMISSIONING AND STATUTORY
Rochdale Borough Council,f1008165,01/08/2019,"12,967.92",ALPHATECH PRINT AND DATA SERVICES LTD,PRINTING & STATIONERY,RESOURCES
Rochdale Borough Council,d3002279,01/08/2019,"11,393.66",MARCHBRIDGE BUILDERS LIMITED,MINOR BUILDING WORKS,PROPERTY AND HIGHWAYS
Rochdale Borough Council,d3002280,01/08/2019,"8,950.00",MRT BUILDING SERVICES LTD,REPAIRS & ALTS OF BUILDINGS,ECONOMY DIRECTORATE
Rochdale Borough Council,x1018181,01/08/2019,"8,858.00",BOLTON MBC,FEES / COMMISSION,CHILDREN�S SOCIAL CARE
Rochdale Borough Council,d3002282,02/08/2019,"70,200.00",UNITY PARTNERSHIP LTD,CONSULTANT FEES,PROPERTY AND HIGHWAYS
Rochdale Borough Council,d3002283,02/08/2019,"40,500.00",AECOM LIMITED,ROADWORKS,PROPERTY AND HIGHWAYS
Rochdale Borough Council,d2001648,02/08/2019,"28,166.50",TRIMBLE UK LIMITED,SOFTWARE,PROPERTY AND HIGHWAYS
Rochdale Borough Council,s1025007,02/08/2019,"22,100.00",PETRUS,SERVICE LEVEL AGREEMENTS,ADULT CARE LCO FUNCTIONS
Rochdale Borough Council,s1025008,02/08/2019,"22,100.00",PETRUS,SERVICE LEVEL AGREEMENTS,ADULT CARE LCO FUNCTIONS
Rochdale Borough Council,ph103811,02/08/2019,"17,133.13",SAFENET DOMESTIC ABUSE SERVICE,PH OTHER CONTRACTS,PUBLIC HEALTH
Rochdale Borough Council,e1028536,02/08/2019,"11,835.40",BEVAN BRITTAN LLP,LEGAL SERVICES EXTERNAL,EARLY HELP AND SCHOOLS
Rochdale Borough Council,x1018182,02/08/2019,"9,227.80",ADVANCED CHILD CARE ASSESSMENTS LIMITED,MEDICAL FEES,CHILDREN�S SOCIAL CARE
Rochdale Borough Council,d2001646,02/08/2019,"7,995.00",DELIB,SUBSCRIPTIONS,NEIGHBOURHOODS AND ENVIRONMENT
Rochdale Borough Council,d3002298,05/08/2019,"143,095.00",NB WORX LTD,MINOR BUILDING WORKS,EARLY HELP AND SCHOOLS
Rochdale Borough Council,f1008168,05/08/2019,"49,999.00",CRITIQOM LIMITED,POSTAGE,RESOURCES
Rochdale Borough Council,d3002292,05/08/2019,"38,490.00",GROUNDWORK LANDSCAPES LIMITED,MINOR BUILDING WORKS,EARLY HELP AND SCHOOLS
Rochdale Borough Council,d1083645,05/08/2019,"29,651.00",GROUNDWORK LANDSCAPES LIMITED,ENVIRONMENTAL WORKS LANDSCAPE,NEIGHBOURHOODS AND ENVIRONMENT
Rochdale Borough Council,ph103814,05/08/2019,"9,832.16",RIS PRODUCTS LTD,CONTRACTED SERVICES,PUBLIC HEALTH
Rochdale Borough Council,d1083646,05/08/2019,"9,200.00",DCM SURFACES,MAINTENANCE,NEIGHBOURHOODS AND ENVIRONMENT
Rochdale Borough Council,d1083647,05/08/2019,"5,408.00",DCM SURFACES,MAINTENANCE,NEIGHBOURHOODS AND ENVIRONMENT
Rochdale Borough Council,d1083661,05/08/2019,"5,000.00",G AND A TAYLOR HOTELS LTD,ACCOMMODATION,NEIGHBOURHOODS AND ENVIRONMENT
Rochdale Borough Council,d1083662,05/08/2019,"5,000.00",G AND A TAYLOR HOTELS LTD,ACCOMMODATION,NEIGHBOURHOODS AND ENVIRONMENT
Rochdale Borough Council,d1083663,05/08/2019,"5,000.00",G AND A TAYLOR HOTELS LTD,ACCOMMODATION,NEIGHBOURHOODS AND ENVIRONMENT
Rochdale Borough Council,d1083664,05/08/2019,"5,000.00",G AND A TAYLOR HOTELS LTD,ACCOMMODATION,NEIGHBOURHOODS AND ENVIRONMENT
Rochdale Borough Council,x1018189,05/08/2019,"5,000.00",RANDSTAD EDUCATION,INDEPENDENT UNITS,EARLY HELP AND SCHOOLS
Rochdale Borough Council,d1083680,06/08/2019,"31,191.00",STANDARD FUEL OILS,TRANSACTIONS-EXPENDITURE,NEIGHBOURHOODS AND ENVIRONMENT
Rochdale Borough Council,d3002304,06/08/2019,"25,800.00",CALEDONIAN LIFTS MANCHESTER LTD,REPAIRS & ALTS OF BUILDINGS,ECONOMY DIRECTORATE
Rochdale Borough Council,d1083689,06/08/2019,"6,513.75",JGM AGENCY,PUBLICITY,NEIGHBOURHOODS AND ENVIRONMENT
Rochdale Borough Council,e1028560,07/08/2019,"425,583.70",INSPIREDSPACES ROCHDALE PROJECTCO2 LTD,PFI SCHEMES RPIX,EARLY HELP AND SCHOOLS
Rochdale Borough Council,e1028561,07/08/2019,"346,192.37",INSPIREDSPACES ROCHDALE PROJECT CO1 LTD,PFI SCHEMES RPIX,EARLY HELP AND SCHOOLS
Rochdale Borough Council,e1028562,07/08/2019,"31,618.15",AXIOM EDUCATION ROCHDALE LIMITED,MEALS,EARLY HELP AND SCHOOLS
Rochdale Borough Council,e1028559,07/08/2019,"26,677.00",OLDHAM COUNCIL,OTHER EST - SEN PROVISION,EARLY HELP AND SCHOOLS
Rochdale Borough Council,e1028556,07/08/2019,"25,230.00",CUMBERLAND SCHOOL,OTHER LA`S - SEN PROVISION,EARLY HELP AND SCHOOLS
Rochdale Borough Council,ph103827,07/08/2019,"25,000.00",SALFORD CITY COUNCIL,PH BUSINESS CASES,PUBLIC HEALTH
Rochdale Borough Council,e1028554,07/08/2019,"19,500.00",SADDLEWORTH ENVIRONMENTAL EDUCATION,OTHER LA`S - SEN PROVISION,EARLY HELP AND SCHOOLS
Rochdale Borough Council,d1083706,07/08/2019,"13,000.00",STEPPING STONE PROJECTS,CONTRACTED SERVICES,NEIGHBOURHOODS AND ENVIRONMENT
Rochdale Borough Council,d1083707,07/08/2019,"13,000.00",STEPPING STONE PROJECTS,CONTRACTED SERVICES,NEIGHBOURHOODS AND ENVIRONMENT
Rochdale Borough Council,e1028553,07/08/2019,"12,294.75",HORIZON CARE AND EDUCATION,OTHER EST - SEN PROVISION,EARLY HELP AND SCHOOLS
Rochdale Borough Council,d1083699,07/08/2019,"9,574.47",POLICE AND CRIME COMMISSIONER FOR GTR MANCHESTER,BASIC SALARIES,NEIGHBOURHOODS AND ENVIRONMENT
Rochdale Borough Council,ph103822,07/08/2019,"6,617.93",BRAHM FUNDCO 1 LTD,RENTS,PUBLIC HEALTH
Rochdale Borough Council,e1028577,08/08/2019,"109,733.00",HORIZON CARE AND EDUCATION,OTHER LA`S - SEN PROVISION,EARLY HELP AND SCHOOLS
Rochdale Borough Council,d3002322,08/08/2019,"105,000.00",METRIC GROUP LTD,MINOR BUILDING WORKS,PROPERTY AND HIGHWAYS
Rochdale Borough Council,d3002316,08/08/2019,"49,498.21",G E GRIFFITHS LIMITED,MINOR BUILDING WORKS,EARLY HELP AND SCHOOLS
Rochdale Borough Council,ph103836,08/08/2019,"35,775.00",OLDHAM COUNCIL,PH OTHER CONTRACTS,PUBLIC HEALTH
Rochdale Borough Council,ph103837,08/08/2019,"29,700.00",MANCHESTER CITY COUNCIL,PH OTHER CONTRACTS,PUBLIC HEALTH
Rochdale Borough Council,r1002209,08/08/2019,"25,000.00",ROCHDALE DEVELOPMENT AGENCY,CAPITAL SALARIES,ECONOMY DIRECTORATE
Rochdale Borough Council,ph103831,08/08/2019,"23,518.91",BIG LIFE CENTRES,CONTRACTED SERVICES,PUBLIC HEALTH
Rochdale Borough Council,r1002208,08/08/2019,"9,211.84",ROCHDALE DEVELOPMENT AGENCY,MARKETING EXPENDITURE,ECONOMY DIRECTORATE
Rochdale Borough Council,f1008184,08/08/2019,"8,331.00",REDACTED - PERSONAL DATA,TRAINING-NON QUALIFICATION,RESOURCES
Rochdale Borough Council,d1083714,08/08/2019,"7,500.00",ROCHDALE MEMORIAL SERVICE,MATERIAL - GENERAL,NEIGHBOURHOODS AND ENVIRONMENT
Rochdale Borough Council,ph103832,08/08/2019,"5,652.00",SOLOPROTECT LTD,EQUIPMENT - GENERAL,NEIGHBOURHOODS AND ENVIRONMENT
Rochdale Borough Council,d3002323,09/08/2019,"187,882.10",MARCHBRIDGE BUILDERS LIMITED,CAPITAL SALARIES,NEIGHBOURHOODS AND ENVIRONMENT
Rochdale Borough Council,w1002008,09/08/2019,"70,400.00",LBPM LTD,CONSULTANT FEES,COMMISSIONING AND STATUTORY
Rochdale Borough Council,d1083740,09/08/2019,"9,974.99",NORTHGATE VEHICLE HIRE LIMITED,TRANSACTIONS-EXPENDITURE,NEIGHBOURHOODS AND ENVIRONMENT
Rochdale Borough Council,w1002009,09/08/2019,"7,975.00",LBPM LTD,CONSULTANT FEES,COMMISSIONING AND STATUTORY
Rochdale Borough Council,ph103841,09/08/2019,"6,000.00",DECIPHER IMPACT LIMITED,EQUIPMENT - GENERAL,NEIGHBOURHOODS AND ENVIRONMENT
Rochdale Borough Council,s1025025,09/08/2019,"5,547.45",UPS BUILDING AND MAINTENANCE LTD,MINOR BUILDING WORKS,ADULT CARE LCO FUNCTIONS
Rochdale Borough Council,d3002324,12/08/2019,"20,000.00",AECOM LIMITED,ROADWORKS,PROPERTY AND HIGHWAYS
Rochdale Borough Council,d3002326,12/08/2019,"12,725.00",NB WORX LTD,MINOR BUILDING WORKS,PROPERTY AND HIGHWAYS
Rochdale Borough Council,f1008195,12/08/2019,"6,636.97",GTM ELECTRICAL SERVICES LIMITED,EQUIPMENT - GENERAL,RESOURCES
Rochdale Borough Council,d3002334,12/08/2019,"6,000.00",W J LEWIS BUILDERS MERCHANTS LIMITED,PROPERTY - WORKS ELEMENT,PROPERTY AND HIGHWAYS
Rochdale Borough Council,d3002346,13/08/2019,"229,663.00",W H GOOD LIMITED,MINOR BUILDING WORKS,EARLY HELP AND SCHOOLS
Rochdale Borough Council,d3002345,13/08/2019,"181,821.00",JACKSON JACKSON AND SONS LTD,MINOR BUILDING WORKS,EARLY HELP AND SCHOOLS
Rochdale Borough Council,f1008199,13/08/2019,"150,000.00",TOPMARK CLAIMS MANAGEMENT LTD IMPREST,TRANSACTIONS-EXPENDITURE,RESOURCES
Rochdale Borough Council,f1008201,13/08/2019,"20,000.00",TEAM NETSOL LTD,SOFTWARE,RESOURCES
Rochdale Borough Council,d3002343,13/08/2019,"14,350.00",VAISALA LIMITED,SOFTWARE,PROPERTY AND HIGHWAYS
Rochdale Borough Council,d2001677,13/08/2019,"12,862.50",LIQUIDLOGIC LTD,ACTIVITIES,NEIGHBOURHOODS AND ENVIRONMENT
Rochdale Borough Council,d3002340,13/08/2019,"10,254.50",PTSG ELECTRICAL SERVICES LTD,PROPERTY - WORKS ELEMENT,PROPERTY AND HIGHWAYS
Rochdale Borough Council,d1083775,13/08/2019,"10,000.00",247 HOTEL,ACCOMMODATION,NEIGHBOURHOODS AND ENVIRONMENT
Rochdale Borough Council,d1083766,13/08/2019,"9,239.40",JAAMA LTD,EQUIPMENT - GENERAL,NEIGHBOURHOODS AND ENVIRONMENT
Rochdale Borough Council,d3002339,13/08/2019,"8,460.00",MALROD LTD,MINOR BUILDING WORKS,EARLY HELP AND SCHOOLS
Rochdale Borough Council,f1008200,13/08/2019,"5,000.00",BERRYMANS LACE MAWER LLP,INPUT VAT -  ADJUSTMENTS,RESOURCES
Rochdale Borough Council,f1008210,14/08/2019,"500,000.00",GALLAGHER BASSETT INTERNATIONAL LTD,TRANSACTIONS-EXPENDITURE,RESOURCES
Rochdale Borough Council,d1083788,14/08/2019,"32,522.14",TG PRODUCTION SUPPLY LTD,ACTIVITIES,NEIGHBOURHOODS AND ENVIRONMENT
Rochdale Borough Council,ph103847,14/08/2019,"26,096.00",TURNING POINT,CONTRACTED SERVICES,PUBLIC HEALTH
Rochdale Borough Council,d3002351,14/08/2019,"17,465.00",THOMAS KERSHAW BUILDERS LTD,MINOR BUILDING WORKS,EARLY HELP AND SCHOOLS
Rochdale Borough Council,ph103849,14/08/2019,"15,015.52",LINK4LIFE CHARITY,PH OTHER CONTRACTS,PUBLIC HEALTH
Rochdale Borough Council,r1002212,14/08/2019,"9,200.00",TRANSPORT FOR GREATER MANCHESTER,CONSULTANTS FEES,ECONOMY DIRECTORATE
Rochdale Borough Council,d1083787,14/08/2019,"8,389.08",TG EVENTS LTD,ACTIVITIES,NEIGHBOURHOODS AND ENVIRONMENT
Rochdale Borough Council,d1083790,14/08/2019,"8,008.91",B T REDCARE,SECURITY,NEIGHBOURHOODS AND ENVIRONMENT
Rochdale Borough Council,f1008209,14/08/2019,"7,871.61",HSBC MERCHANT SERVICES,BANK CHARGES,RESOURCES
Rochdale Borough Council,s1025041,14/08/2019,"5,522.88",UPS BUILDING AND MAINTENANCE LTD,MINOR BUILDING WORKS,ADULT CARE LCO FUNCTIONS
Rochdale Borough Council,d1083791,14/08/2019,"5,083.00",LS SYSTEMS LTD,"TREES, SHRUBS, PLANTS",NEIGHBOURHOODS AND ENVIRONMENT
Rochdale Borough Council,s1025055,15/08/2019,"488,440.00",THE PENNINE ACUTE HOSPITALS NHS TRUST,INDEPENDENT UNITS,BETTER CARE FUND POOLED BUDGET
Rochdale Borough Council,d1083815,15/08/2019,"58,680.57",WICKSTEED LEISURE LIMITED,ENVIRONMENTAL WORKS LANDSCAPE,NEIGHBOURHOODS AND ENVIRONMENT
Rochdale Borough Council,f1008211,15/08/2019,"41,029.65",CHILDCARE VOUCHERS LIMITED,TRANSACTIONS-EXPENDITURE,RESOURCES
Rochdale Borough Council,s1025057,15/08/2019,"40,848.00",N COMPASS,CONTRACTS,BETTER CARE FUND POOLED BUDGET
Rochdale Borough Council,s1025058,15/08/2019,"40,848.00",N COMPASS,CONTRACTS,BETTER CARE FUND POOLED BUDGET
Rochdale Borough Council,f1008212,15/08/2019,"39,224.54",CHILDCARE VOUCHERS LIMITED,TRANSACTIONS-EXPENDITURE,RESOURCES
Rochdale Borough Council,s1025059,15/08/2019,"36,722.33",N COMPASS,CONTRACTS,BETTER CARE FUND POOLED BUDGET
Rochdale Borough Council,e1028613,15/08/2019,"32,406.00",OLDHAM COUNCIL,OTHER EST - SEN PROVISION,EARLY HELP AND SCHOOLS
Rochdale Borough Council,s1025056,15/08/2019,"24,719.52",NHS HEYWOOD MIDDLETON AND ROCHDALE CCG,OTHER AGENCIES,BETTER CARE FUND POOLED BUDGET
Rochdale Borough Council,s1025047,15/08/2019,"10,215.04",UPS BUILDING AND MAINTENANCE LTD,MINOR BUILDING WORKS,ADULT CARE LCO FUNCTIONS
Rochdale Borough Council,s1025052,15/08/2019,"10,050.00",IMOSPHERE LIMITED,IT MAINTENANCE,ADULT CARE LCO FUNCTIONS
Rochdale Borough Council,x1018244,15/08/2019,"7,440.00",NOMS AGENCY,SERVICE LEVEL AGREEMENTS,CHILDREN�S SOCIAL CARE
Rochdale Borough Council,x1018246,15/08/2019,"7,440.00",NOMS AGENCY,SERVICE LEVEL AGREEMENTS,CHILDREN�S SOCIAL CARE
Rochdale Borough Council,x1018247,15/08/2019,"7,200.00",NOMS AGENCY,SERVICE LEVEL AGREEMENTS,CHILDREN�S SOCIAL CARE
Rochdale Borough Council,x1018248,15/08/2019,"7,200.00",NOMS AGENCY,SERVICE LEVEL AGREEMENTS,CHILDREN�S SOCIAL CARE
Rochdale Borough Council,d1083827,15/08/2019,"6,000.00",PAINS FIREWORKS LIMITED,EQUIPMENT - GENERAL,NEIGHBOURHOODS AND ENVIRONMENT
Rochdale Borough Council,s1025053,15/08/2019,"5,887.99",UPS BUILDING AND MAINTENANCE LTD,TRANSACTIONS-EXPENDITURE,ADULT CARE LCO FUNCTIONS
Rochdale Borough Council,x1018249,15/08/2019,"5,859.00",NOMS AGENCY,SERVICE LEVEL AGREEMENTS,CHILDREN�S SOCIAL CARE
Rochdale Borough Council,x1018251,15/08/2019,"5,859.00",NOMS AGENCY,SERVICE LEVEL AGREEMENTS,CHILDREN�S SOCIAL CARE
Rochdale Borough Council,s1025049,15/08/2019,"5,433.30",UPS BUILDING AND MAINTENANCE LTD,MINOR BUILDING WORKS,ADULT CARE LCO FUNCTIONS
Rochdale Borough Council,x1018250,15/08/2019,"5,292.00",NOMS AGENCY,SERVICE LEVEL AGREEMENTS,CHILDREN�S SOCIAL CARE
Rochdale Borough Council,d1083819,15/08/2019,"5,000.00",GMCA,GRANTS TO OTHER BODIES,NEIGHBOURHOODS AND ENVIRONMENT
Rochdale Borough Council,r1002214,16/08/2019,"25,193.38",BRAHM FUNDCO 2 LTD,PFI SCHEMES RPI,ECONOMY DIRECTORATE
Rochdale Borough Council,ph103853,16/08/2019,"15,748.63",ROCHDALE HOUSING INITIATIVE,EQUIPMENT - GENERAL,PUBLIC HEALTH
Rochdale Borough Council,r1002217,16/08/2019,"14,424.71",NOMAD CLAN CO UK,CONSULTANTS FEES,ECONOMY DIRECTORATE
Rochdale Borough Council,d3002359,16/08/2019,"7,491.00",MRT BUILDING SERVICES LTD,MINOR BUILDING WORKS,EARLY HELP AND SCHOOLS
Rochdale Borough Council,f1008220,19/08/2019,"532,000.00",AON LIMITED,TRANSACTIONS-EXPENDITURE,RESOURCES
Rochdale Borough Council,f1008230,19/08/2019,"68,332.45",AON LIMITED,TRANSACTIONS-EXPENDITURE,RESOURCES
Rochdale Borough Council,r1002222,19/08/2019,"64,013.22",ROCHDALE DEVELOPMENT AGENCY,CONTRACTED SERVICES,ECONOMY DIRECTORATE
Rochdale Borough Council,f1008229,19/08/2019,"52,780.00",AON LIMITED,TRANSACTIONS-EXPENDITURE,RESOURCES
Rochdale Borough Council,f1008224,19/08/2019,"52,160.47",AON LIMITED,TRANSACTIONS-EXPENDITURE,RESOURCES
Rochdale Borough Council,f1008227,19/08/2019,"45,360.00",AON LIMITED,TRANSACTIONS-EXPENDITURE,RESOURCES
Rochdale Borough Council,f1008228,19/08/2019,"22,008.00",AON LIMITED,TRANSACTIONS-EXPENDITURE,RESOURCES
Rochdale Borough Council,s1025065,19/08/2019,"20,460.00",CHERISH UK LTD,HOME CARE - ADULT SERVICES,ADULT CARE LCO FUNCTIONS
Rochdale Borough Council,f1008226,19/08/2019,"17,937.92",AON LIMITED,TRANSACTIONS-EXPENDITURE,RESOURCES
Rochdale Borough Council,f1008223,19/08/2019,"16,648.42",AON LIMITED,TRANSACTIONS-EXPENDITURE,RESOURCES
Rochdale Borough Council,r1002219,19/08/2019,"13,830.00",PRICE AND MYERS,CONSULTANTS FEES,ECONOMY DIRECTORATE
Rochdale Borough Council,f1008225,19/08/2019,"11,435.20",AON LIMITED,TRANSACTIONS-EXPENDITURE,RESOURCES
Rochdale Borough Council,r1002220,19/08/2019,"10,595.00",GEOTECHNICAL ENGINEERING LTD,SITE INVESTIGATION,ECONOMY DIRECTORATE
Rochdale Borough Council,d1083855,19/08/2019,"9,846.00",CLOVER SECURITY SERVICES LIMITED,MINOR BUILDING WORKS,ECONOMY DIRECTORATE
Rochdale Borough Council,f1008222,19/08/2019,"8,846.97",AON LIMITED,TRANSACTIONS-EXPENDITURE,RESOURCES
Rochdale Borough Council,d1083839,19/08/2019,"6,513.75",JGM AGENCY,PUBLICITY,NEIGHBOURHOODS AND ENVIRONMENT
Rochdale Borough Council,r1002218,19/08/2019,"6,000.00",GEOTECHNICAL ENGINEERING LTD,SITE INVESTIGATION,ECONOMY DIRECTORATE
Rochdale Borough Council,f1008232,19/08/2019,"5,548.48",AON LIMITED,INSURANCE,RESOURCES
Rochdale Borough Council,d1083870,20/08/2019,"19,900.00",GPD TRAVEL,TAXI HIRE,NEIGHBOURHOODS AND ENVIRONMENT
Rochdale Borough Council,d1083871,20/08/2019,"18,400.00",GPD TRAVEL,TAXI HIRE,NEIGHBOURHOODS AND ENVIRONMENT
Rochdale Borough Council,d1083876,20/08/2019,"17,100.00",PREMIERESHOW LIMITED,TAXI HIRE,NEIGHBOURHOODS AND ENVIRONMENT
Rochdale Borough Council,d1083887,20/08/2019,"17,000.00",J AND S TRAVEL,TAXI HIRE,NEIGHBOURHOODS AND ENVIRONMENT
Rochdale Borough Council,d1083893,20/08/2019,"16,900.00",DALE INDUSTRIAL SERVICES LIMITED,TAXI HIRE,NEIGHBOURHOODS AND ENVIRONMENT
Rochdale Borough Council,d1083897,20/08/2019,"16,700.00",DALE INDUSTRIAL SERVICES LIMITED,TAXI HIRE,NEIGHBOURHOODS AND ENVIRONMENT
Rochdale Borough Council,d1083877,20/08/2019,"16,550.00",PREMIERESHOW LIMITED,TAXI HIRE,NEIGHBOURHOODS AND ENVIRONMENT
Rochdale Borough Council,d1083873,20/08/2019,"16,400.00",PREMIERESHOW LIMITED,TAXI HIRE,NEIGHBOURHOODS AND ENVIRONMENT
Rochdale Borough Council,d1083888,20/08/2019,"16,400.00",J AND S TRAVEL,TAXI HIRE,NEIGHBOURHOODS AND ENVIRONMENT
Rochdale Borough Council,d1083896,20/08/2019,"16,400.00",DALE INDUSTRIAL SERVICES LIMITED,TAXI HIRE,NEIGHBOURHOODS AND ENVIRONMENT
Rochdale Borough Council,d1083890,20/08/2019,"16,300.00",J AND S TRAVEL,TAXI HIRE,NEIGHBOURHOODS AND ENVIRONMENT
Rochdale Borough Council,d1083889,20/08/2019,"16,100.00",J AND S TRAVEL,TAXI HIRE,NEIGHBOURHOODS AND ENVIRONMENT
Rochdale Borough Council,d1083891,20/08/2019,"16,100.00",COACH OPTIONS LIMITED,TAXI HIRE,NEIGHBOURHOODS AND ENVIRONMENT
Rochdale Borough Council,d1083895,20/08/2019,"16,100.00",DALE INDUSTRIAL SERVICES LIMITED,TAXI HIRE,NEIGHBOURHOODS AND ENVIRONMENT
Rochdale Borough Council,d1083886,20/08/2019,"15,800.00",D H MINICOACH HIRE,TAXI HIRE,NEIGHBOURHOODS AND ENVIRONMENT
Rochdale Borough Council,d1083894,20/08/2019,"15,800.00",DALE INDUSTRIAL SERVICES LIMITED,TAXI HIRE,NEIGHBOURHOODS AND ENVIRONMENT
Rochdale Borough Council,d1083874,20/08/2019,"15,700.00",PREMIERESHOW LIMITED,TAXI HIRE,NEIGHBOURHOODS AND ENVIRONMENT
Rochdale Borough Council,d1083884,20/08/2019,"15,600.00",COACH OPTIONS LIMITED,TAXI HIRE,NEIGHBOURHOODS AND ENVIRONMENT
Rochdale Borough Council,d1083885,20/08/2019,"15,600.00",D H MINICOACH HIRE,TAXI HIRE,NEIGHBOURHOODS AND ENVIRONMENT
Rochdale Borough Council,d1083875,20/08/2019,"15,000.00",PREMIERESHOW LIMITED,TAXI HIRE,NEIGHBOURHOODS AND ENVIRONMENT
Rochdale Borough Council,d1083900,20/08/2019,"13,900.00",OLYMPIC EXECUTIVE TRAVEL,TAXI HIRE,NEIGHBOURHOODS AND ENVIRONMENT
Rochdale Borough Council,d1083901,20/08/2019,"13,600.00",OLYMPIC EXECUTIVE TRAVEL,TAXI HIRE,NEIGHBOURHOODS AND ENVIRONMENT
Rochdale Borough Council,d1083872,20/08/2019,"13,400.00",PREMIERESHOW LIMITED,TAXI HIRE,NEIGHBOURHOODS AND ENVIRONMENT
Rochdale Borough Council,d1083898,20/08/2019,"13,100.00",OLYMPIC EXECUTIVE TRAVEL,TAXI HIRE,NEIGHBOURHOODS AND ENVIRONMENT
Rochdale Borough Council,d1083869,20/08/2019,"12,800.00",GPD TRAVEL,TAXI HIRE,NEIGHBOURHOODS AND ENVIRONMENT
Rochdale Borough Council,d1083868,20/08/2019,"12,500.00",GPD TRAVEL,TAXI HIRE,NEIGHBOURHOODS AND ENVIRONMENT
Rochdale Borough Council,d1083867,20/08/2019,"12,300.00",GPD TRAVEL,TAXI HIRE,NEIGHBOURHOODS AND ENVIRONMENT
Rochdale Borough Council,d1083899,20/08/2019,"11,700.00",OLYMPIC EXECUTIVE TRAVEL,TAXI HIRE,NEIGHBOURHOODS AND ENVIRONMENT
Rochdale Borough Council,d1083903,20/08/2019,"7,100.00",GC MINI BUS SERVICES,TAXI HIRE,NEIGHBOURHOODS AND ENVIRONMENT
Rochdale Borough Council,s1025074,20/08/2019,"7,236.00",STANNAH LIFT SERVICES LTD,MINOR BUILDING WORKS,ADULT CARE LCO FUNCTIONS
Rochdale Borough Council,d1083941,21/08/2019,"19,500.00",STREAMLINE TAXIS,TAXI HIRE,NEIGHBOURHOODS AND ENVIRONMENT
Rochdale Borough Council,d1083917,21/08/2019,"17,000.00",ROYTON MINIBUSES LIMITED,TAXI HIRE,NEIGHBOURHOODS AND ENVIRONMENT
Rochdale Borough Council,d1083916,21/08/2019,"16,700.00",ROYTON MINIBUSES LIMITED,TAXI HIRE,NEIGHBOURHOODS AND ENVIRONMENT
Rochdale Borough Council,d1083918,21/08/2019,"16,500.00",ROYTON MINIBUSES LIMITED,TAXI HIRE,NEIGHBOURHOODS AND ENVIRONMENT
Rochdale Borough Council,d1083915,21/08/2019,"14,000.00",DK MINIBUSES LTD,TAXI HIRE,NEIGHBOURHOODS AND ENVIRONMENT
Rochdale Borough Council,d1083956,21/08/2019,"12,100.00",MIDDLETON CARS,TAXI HIRE,NEIGHBOURHOODS AND ENVIRONMENT
Rochdale Borough Council,d1083943,21/08/2019,"9,500.00",STREAMLINE TAXIS,TAXI HIRE,NEIGHBOURHOODS AND ENVIRONMENT
Rochdale Borough Council,d1083948,21/08/2019,"8,400.00",ROCHDALE TOWN TAXIS LTD,TAXI HIRE,NEIGHBOURHOODS AND ENVIRONMENT
Rochdale Borough Council,d1083921,21/08/2019,"8,000.00",DIAMOND NO1 CARS,TAXI HIRE,NEIGHBOURHOODS AND ENVIRONMENT
Rochdale Borough Council,d1083940,21/08/2019,"8,000.00",STREAMLINE TAXIS,TAXI HIRE,NEIGHBOURHOODS AND ENVIRONMENT
Rochdale Borough Council,d1083942,21/08/2019,"8,000.00",STREAMLINE TAXIS,TAXI HIRE,NEIGHBOURHOODS AND ENVIRONMENT
Rochdale Borough Council,d1083923,21/08/2019,"7,600.00",COZY CARS,TAXI HIRE,NEIGHBOURHOODS AND ENVIRONMENT
Rochdale Borough Council,d1083947,21/08/2019,"7,100.00",ROCHDALE TOWN TAXIS LTD,TAXI HIRE,NEIGHBOURHOODS AND ENVIRONMENT
Rochdale Borough Council,d1083934,21/08/2019,"6,600.00",COZY CARS,TAXI HIRE,NEIGHBOURHOODS AND ENVIRONMENT
Rochdale Borough Council,d1083945,21/08/2019,"6,600.00",STREAMLINE TAXIS,TAXI HIRE,NEIGHBOURHOODS AND ENVIRONMENT
Rochdale Borough Council,d1083946,21/08/2019,"6,600.00",ROCHDALE TOWN TAXIS LTD,TAXI HIRE,NEIGHBOURHOODS AND ENVIRONMENT
Rochdale Borough Council,d1083955,21/08/2019,"6,500.00",MIDDLETON CARS,TAXI HIRE,NEIGHBOURHOODS AND ENVIRONMENT
Rochdale Borough Council,d1083951,21/08/2019,"6,300.00",ROCHDALE TOWN TAXIS LTD,TAXI HIRE,NEIGHBOURHOODS AND ENVIRONMENT
Rochdale Borough Council,d1083919,21/08/2019,"6,200.00",CONNECT CARS MIDDLETON LIMITED,TAXI HIRE,NEIGHBOURHOODS AND ENVIRONMENT
Rochdale Borough Council,d1083922,21/08/2019,"6,100.00",COZY CARS,TAXI HIRE,NEIGHBOURHOODS AND ENVIRONMENT
Rochdale Borough Council,d1083938,21/08/2019,"5,800.00",STREAMLINE TAXIS,TAXI HIRE,NEIGHBOURHOODS AND ENVIRONMENT
Rochdale Borough Council,d1083937,21/08/2019,"5,300.00",STREAMLINE TAXIS,TAXI HIRE,NEIGHBOURHOODS AND ENVIRONMENT
Rochdale Borough Council,d1083933,21/08/2019,"5,100.00",COZY CARS,TAXI HIRE,NEIGHBOURHOODS AND ENVIRONMENT
Rochdale Borough Council,f1008245,21/08/2019,"18,723.65",THOMSON REUTERS,REFERENCE BOOKS/NEWSPAPERS/PERIODICALS,RESOURCES
Rochdale Borough Council,f1008242,21/08/2019,"11,050.00",REDACTED - PERSONAL DATA,PROFESSIONAL FEES,NEIGHBOURHOODS AND ENVIRONMENT
Rochdale Borough Council,d3002382,21/08/2019,"10,924.73",CRUDEN CONSTRUCTION LIMITED,MINOR BUILDING WORKS,EARLY HELP AND SCHOOLS
Rochdale Borough Council,d1083909,21/08/2019,"6,398.00",ISAAC BUTTERWORTH IRONFOUNDERS LIMITED,ROADWORKS,NEIGHBOURHOODS AND ENVIRONMENT
Rochdale Borough Council,d1083925,21/08/2019,"5,950.00",BARTEC AUTO ID LTD,EQUIPMENT - GENERAL,NEIGHBOURHOODS AND ENVIRONMENT
Rochdale Borough Council,s1025077,21/08/2019,"5,422.70",UPS BUILDING AND MAINTENANCE LTD,TRANSACTIONS-EXPENDITURE,ADULT CARE LCO FUNCTIONS
Rochdale Borough Council,d2001693,21/08/2019,"5,195.00",CC2I LTD,SOFTWARE,NEIGHBOURHOODS AND ENVIRONMENT
Rochdale Borough Council,f1008251,22/08/2019,"398,164.84",AON LIMITED,TRANSACTIONS-EXPENDITURE,RESOURCES
Rochdale Borough Council,d3002392,22/08/2019,"396,002.60",COMMUNITY LIGHTING PARTNERSHIP ROCHDALE LTD,PFI SCHEMES RPIX,PROPERTY AND HIGHWAYS
Rochdale Borough Council,r1002223,22/08/2019,"154,088.71",CANAL AND RIVER TRUST,ROCHDALE CANAL MAINTENANCE,ECONOMY DIRECTORATE
Rochdale Borough Council,r1002224,22/08/2019,"154,088.71",CANAL AND RIVER TRUST,ROCHDALE CANAL MAINTENANCE,ECONOMY DIRECTORATE
Rochdale Borough Council,e1028645,22/08/2019,"29,022.00",PENNINE CARE NHS,HEALTH AUTH - SERVICE LEVEL AGREEMENT,EARLY HELP AND SCHOOLS
Rochdale Borough Council,s1025084,22/08/2019,"6,153.74",UPS BUILDING AND MAINTENANCE LTD,MINOR BUILDING WORKS,ADULT CARE LCO FUNCTIONS
Rochdale Borough Council,s1025080,22/08/2019,"6,134.00",STANNAH LIFT SERVICES LTD,MINOR BUILDING WORKS,ADULT CARE LCO FUNCTIONS
Rochdale Borough Council,s1025082,22/08/2019,"5,771.50",UPS BUILDING AND MAINTENANCE LTD,MINOR BUILDING WORKS,ADULT CARE LCO FUNCTIONS
Rochdale Borough Council,s1025081,22/08/2019,"5,429.00",STANNAH LIFT SERVICES LTD,MINOR BUILDING WORKS,ADULT CARE LCO FUNCTIONS
Rochdale Borough Council,f1008254,22/08/2019,"5,090.95",HEALTH MANAGEMENT LIMITED,OCCUPATIONAL HEALTH,RESOURCES
Rochdale Borough Council,x1018323,23/08/2019,"9,866.00",ADOPTION MATTERS NORTHWEST,ADOPTION PAYMENTS,CHILDREN�S SOCIAL CARE
Rochdale Borough Council,d1083984,23/08/2019,"8,500.00",MIDDLETON CARS,TAXI HIRE,NEIGHBOURHOODS AND ENVIRONMENT
Rochdale Borough Council,d1083985,23/08/2019,"6,000.00",MIDDLETON CARS,TAXI HIRE,NEIGHBOURHOODS AND ENVIRONMENT
Rochdale Borough Council,e1028653,23/08/2019,"709,984.91",AXIOM EDUCATION ROCHDALE LIMITED,PFI SCHEMES RPIX,EARLY HELP AND SCHOOLS
Rochdale Borough Council,x1018322,23/08/2019,"12,644.00",SERVELEC YOUTH SERVICES LTD,SOFTWARE,CHILDREN�S SOCIAL CARE
Rochdale Borough Council,d1083996,27/08/2019,"17,500.00",CAR 2000 HEYWOOD LLP,TAXI HIRE,NEIGHBOURHOODS AND ENVIRONMENT
Rochdale Borough Council,d1083997,27/08/2019,"15,800.00",CAR 2000 HEYWOOD LLP,TAXI HIRE,NEIGHBOURHOODS AND ENVIRONMENT
Rochdale Borough Council,d1083990,27/08/2019,"15,000.00",CAR 2000 HEYWOOD LLP,TAXI HIRE,NEIGHBOURHOODS AND ENVIRONMENT
Rochdale Borough Council,d1084000,27/08/2019,"14,500.00",CAR 2000 HEYWOOD LLP,TAXI HIRE,NEIGHBOURHOODS AND ENVIRONMENT
Rochdale Borough Council,d1083999,27/08/2019,"14,000.00",CAR 2000 HEYWOOD LLP,TAXI HIRE,NEIGHBOURHOODS AND ENVIRONMENT
Rochdale Borough Council,d1083998,27/08/2019,"13,000.00",CAR 2000 HEYWOOD LLP,TAXI HIRE,NEIGHBOURHOODS AND ENVIRONMENT
Rochdale Borough Council,d1083993,27/08/2019,"11,000.00",CAR 2000 HEYWOOD LLP,TAXI HIRE,NEIGHBOURHOODS AND ENVIRONMENT
Rochdale Borough Council,d1084001,27/08/2019,"8,500.00",CAR 2000 HEYWOOD LLP,TAXI HIRE,NEIGHBOURHOODS AND ENVIRONMENT
Rochdale Borough Council,d1084010,27/08/2019,"8,000.00",STREAMLINE TAXIS,TAXI HIRE,NEIGHBOURHOODS AND ENVIRONMENT
Rochdale Borough Council,d1084002,27/08/2019,"7,100.00",CAR 2000 HEYWOOD LLP,TAXI HIRE,NEIGHBOURHOODS AND ENVIRONMENT
Rochdale Borough Council,d1084004,27/08/2019,"7,000.00",CAR 2000 HEYWOOD LLP,TAXI HIRE,NEIGHBOURHOODS AND ENVIRONMENT
Rochdale Borough Council,d1084033,27/08/2019,"6,850.00",STREAMLINE TAXIS,TAXI HIRE,NEIGHBOURHOODS AND ENVIRONMENT
Rochdale Borough Council,d1084025,27/08/2019,"6,800.00",DIAMOND NO1 CARS,TAXI HIRE,NEIGHBOURHOODS AND ENVIRONMENT
Rochdale Borough Council,d1083992,27/08/2019,"6,500.00",CAR 2000 HEYWOOD LLP,TAXI HIRE,NEIGHBOURHOODS AND ENVIRONMENT
Rochdale Borough Council,d1083995,27/08/2019,"6,500.00",CAR 2000 HEYWOOD LLP,TAXI HIRE,NEIGHBOURHOODS AND ENVIRONMENT
Rochdale Borough Council,d1084003,27/08/2019,"6,500.00",CAR 2000 HEYWOOD LLP,TAXI HIRE,NEIGHBOURHOODS AND ENVIRONMENT
Rochdale Borough Council,d1083989,27/08/2019,"6,200.00",STREAMLINE TAXIS,TAXI HIRE,NEIGHBOURHOODS AND ENVIRONMENT
Rochdale Borough Council,d1083994,27/08/2019,"6,000.00",CAR 2000 HEYWOOD LLP,TAXI HIRE,NEIGHBOURHOODS AND ENVIRONMENT
Rochdale Borough Council,d1084026,27/08/2019,"5,600.00",DIAMOND NO1 CARS,TAXI HIRE,NEIGHBOURHOODS AND ENVIRONMENT
Rochdale Borough Council,d1084030,27/08/2019,"5,600.00",DIAMOND NO1 CARS,TAXI HIRE,NEIGHBOURHOODS AND ENVIRONMENT
Rochdale Borough Council,d1084021,27/08/2019,"5,500.00",DIAMOND NO1 CARS,TAXI HIRE,NEIGHBOURHOODS AND ENVIRONMENT
Rochdale Borough Council,d1084029,27/08/2019,"5,350.00",DIAMOND NO1 CARS,TAXI HIRE,NEIGHBOURHOODS AND ENVIRONMENT
Rochdale Borough Council,d1084034,27/08/2019,"5,300.00",STREAMLINE TAXIS,TAXI HIRE,NEIGHBOURHOODS AND ENVIRONMENT
Rochdale Borough Council,d1084032,27/08/2019,"5,200.00",STREAMLINE TAXIS,TAXI HIRE,NEIGHBOURHOODS AND ENVIRONMENT
Rochdale Borough Council,e1028661,27/08/2019,"37,822.00",CUMBERLAND SCHOOL,OTHER LA`S - SEN PROVISION,EARLY HELP AND SCHOOLS
Rochdale Borough Council,d1084005,27/08/2019,"20,000.00",MANCHESTER CITY COUNCIL,EVENTS,NEIGHBOURHOODS AND ENVIRONMENT
Rochdale Borough Council,e1028657,27/08/2019,"12,288.34",ROYAL SCHOOL FOR THE DEAF DERBY,OTHER LA`S - SEN PROVISION,EARLY HELP AND SCHOOLS
Rochdale Borough Council,d1084007,27/08/2019,"11,575.23",DIRECT TYRE MANAGEMENT LTD,TYRES,NEIGHBOURHOODS AND ENVIRONMENT
Rochdale Borough Council,d2001703,27/08/2019,"9,664.80",MHR,SOFTWARE,RESOURCES
Rochdale Borough Council,d2001702,27/08/2019,"9,204.51",MHR,SOFTWARE,RESOURCES
Rochdale Borough Council,ph103865,27/08/2019,"6,617.93",BRAHM FUNDCO 1 LTD,RENTS,PUBLIC HEALTH
Rochdale Borough Council,e1028658,27/08/2019,"5,075.00",HOPWOOD HALL COLLEGE,OTHER EST - SEN PROVISION,EARLY HELP AND SCHOOLS
Rochdale Borough Council,d1083987,27/08/2019,"5,064.00",EMO OIL LIMITED,OIL,NEIGHBOURHOODS AND ENVIRONMENT
Rochdale Borough Council,e1028664,28/08/2019,"42,374.20",TRANSPORT FOR GREATER MANCHESTER,STUDENT TRAVEL,EARLY HELP AND SCHOOLS
Rochdale Borough Council,x1018356,28/08/2019,"27,000.00",ADOPTION MATTERS NORTHWEST,ADOPTION PAYMENTS,CHILDREN�S SOCIAL CARE
Rochdale Borough Council,d2001705,28/08/2019,"55,398.63",MHR,SOFTWARE,NEIGHBOURHOODS AND ENVIRONMENT
Rochdale Borough Council,r1002226,28/08/2019,"53,300.00",DONALD INSALL ASSOCIATES,MINOR BUILDING WORKS,ECONOMY DIRECTORATE
Rochdale Borough Council,ph103868,28/08/2019,"49,502.00",EARLY BREAK,ACTIVITIES,PUBLIC HEALTH
Rochdale Borough Council,d1084037,28/08/2019,"30,861.00",STANDARD FUEL OILS,TRANSACTIONS-EXPENDITURE,NEIGHBOURHOODS AND ENVIRONMENT
Rochdale Borough Council,d1084038,28/08/2019,"27,941.50",EVANS HALSHAW,PURCHASE OF VEHICLES,NEIGHBOURHOODS AND ENVIRONMENT
Rochdale Borough Council,d1084048,28/08/2019,"16,780.00",BLOOM PROCUREMENT SERVICES LTD,CONSULTANT FEES,NEIGHBOURHOODS AND ENVIRONMENT
Rochdale Borough Council,ph103869,28/08/2019,"8,333.33",ACTION TOGETHER,CONTRACTED SERVICES,PUBLIC HEALTH
Rochdale Borough Council,e1028669,28/08/2019,"6,839.00",BURY GRAMMAR SCHOOLS TRUSTEES LTD,OTHER LA`S - SEN PROVISION,EARLY HELP AND SCHOOLS
Rochdale Borough Council,r1002225,28/08/2019,"6,825.63",GILLESPIES LLP,CONSULTANTS FEES,ECONOMY DIRECTORATE
Rochdale Borough Council,s1025097,28/08/2019,"6,743.60",UPS BUILDING AND MAINTENANCE LTD,MINOR BUILDING WORKS,ADULT CARE LCO FUNCTIONS
Rochdale Borough Council,s1025101,28/08/2019,"5,386.80",UPS BUILDING AND MAINTENANCE LTD,MINOR BUILDING WORKS,ADULT CARE LCO FUNCTIONS
Rochdale Borough Council,s1025102,28/08/2019,"5,382.00",ASTOR BANNERMAN MEDICAL LTD,MINOR BUILDING WORKS,ADULT CARE LCO FUNCTIONS
Rochdale Borough Council,s1025100,28/08/2019,"5,280.20",UPS BUILDING AND MAINTENANCE LTD,MINOR BUILDING WORKS,ADULT CARE LCO FUNCTIONS
Rochdale Borough Council,r1002227,28/08/2019,"5,194.60",DONALD INSALL ASSOCIATES,MINOR BUILDING WORKS,ECONOMY DIRECTORATE
Rochdale Borough Council,s1025103,29/08/2019,"50,000.00",ELDERCARE UK LTD,SERVICE LEVEL AGREEMENTS,ADULT CARE LCO FUNCTIONS
Rochdale Borough Council,s1025104,29/08/2019,"8,375.01",NHS HEYWOOD MIDDLETON AND ROCHDALE CCG,HOME CARE - ADULT SERVICES,ADULT CARE LCO FUNCTIONS
Rochdale Borough Council,s1025105,29/08/2019,"8,327.99",NHS HEYWOOD MIDDLETON AND ROCHDALE CCG,HOME CARE - ADULT SERVICES,ADULT CARE LCO FUNCTIONS
Rochdale Borough Council,d3002422,29/08/2019,"7,491.00",MRT BUILDING SERVICES LTD,MINOR BUILDING WORKS,EARLY HELP AND SCHOOLS
Rochdale Borough Council,s1025106,29/08/2019,"5,000.00",REDACTED - PERSONAL DATA,EXPENSES - GENERAL,COMMISSIONING AND STATUTORY
Rochdale Borough Council,e1028680,30/08/2019,"32,400.00",BALTIMORE CONSULTING LTD,AGENCY STAFF,EARLY HELP AND SCHOOLS
Rochdale Borough Council,ph103870,30/08/2019,"20,862.00",TAMESIDE METROPOLITAN BOROUGH COUNCIL,PH NETWORK COSTS,PUBLIC HEALTH
Rochdale Borough Council,e1028681,30/08/2019,"15,187.50",PSYCHOLOGY PEOPLE,AGENCY STAFF,EARLY HELP AND SCHOOLS
Rochdale Borough Council,e1028678,30/08/2019,"10,800.00",YVONNE LUCKIN LTD,AGENCY STAFF,EARLY HELP AND SCHOOLS
Rochdale Borough Council,d1084062,30/08/2019,"9,000.00",THE UNIVERSITY OF SALFORD,TRAINING-QUALIFICATION,NEIGHBOURHOODS AND ENVIRONMENT
Rochdale Borough Council,d3002425,30/08/2019,"8,169.00",WSP LTD UK,MINOR BUILDING WORKS,PROPERTY AND HIGHWAYS
Rochdale Borough Council,e1028679,30/08/2019,"6,433.29",YVONNE LUCKIN LTD,AGENCY STAFF,EARLY HELP AND SCHOOLS
Rochdale Borough Council,s1025109,02/09/2019,"488,440.00",THE PENNINE ACUTE HOSPITALS NHS TRUST,INDEPENDENT UNITS,BETTER CARE FUND POOLED BUDGET
Rochdale Borough Council,ph103875,02/09/2019,"23,518.91",BIG LIFE CENTRES,CONTRACTED SERVICES,PUBLIC HEALTH
Rochdale Borough Council,e1028690,02/09/2019,"20,868.00",WITHERSLACK GROUP,OTHER LA`S - SEN PROVISION,EARLY HELP AND SCHOOLS
Rochdale Borough Council,d3002434,02/09/2019,"16,452.37",LINK4LIFE TRADING,MINOR BUILDING WORKS,PROPERTY AND HIGHWAYS
Rochdale Borough Council,ph103874,02/09/2019,"10,441.76",RIS PRODUCTS LTD,CONTRACTED SERVICES,PUBLIC HEALTH
Rochdale Borough Council,e1028686,02/09/2019,"10,104.00",BEECH HOUSE SCHOOL LTD,OTHER LA`S - SEN PROVISION,EARLY HELP AND SCHOOLS
Rochdale Borough Council,e1028689,02/09/2019,"9,119.00",ROCHDALE ISLAMIC ACADEMY,OTHER LA`S - SEN PROVISION,EARLY HELP AND SCHOOLS
Rochdale Borough Council,e1028687,02/09/2019,"8,334.00",BEECH HOUSE SCHOOL LTD,OTHER LA`S - SEN PROVISION,EARLY HELP AND SCHOOLS
Rochdale Borough Council,ph103873,02/09/2019,"8,060.07",LINK4LIFE CHARITY,TRANSACTIONS-EXPENDITURE,PUBLIC HEALTH
Rochdale Borough Council,e1028688,02/09/2019,"5,261.00",BEECH HOUSE SCHOOL LTD,OTHER LA`S - SEN PROVISION,EARLY HELP AND SCHOOLS
Rochdale Borough Council,d3002435,02/09/2019,"5,120.00",LINK4LIFE TRADING,MINOR BUILDING WORKS,PROPERTY AND HIGHWAYS
Rochdale Borough Council,d1084114,03/09/2019,"9,900.00",STREAMLINE TAXIS,TAXI HIRE,NEIGHBOURHOODS AND ENVIRONMENT
Rochdale Borough Council,d1084103,03/09/2019,"9,200.00",MIDDLETON CARS,TAXI HIRE,NEIGHBOURHOODS AND ENVIRONMENT
Rochdale Borough Council,d1084111,03/09/2019,"9,200.00",MIDDLETON CARS,TAXI HIRE,NEIGHBOURHOODS AND ENVIRONMENT
Rochdale Borough Council,d1084112,03/09/2019,"9,200.00",MIDDLETON CARS,TAXI HIRE,NEIGHBOURHOODS AND ENVIRONMENT
Rochdale Borough Council,d1084113,03/09/2019,"9,200.00",MIDDLETON CARS,TAXI HIRE,NEIGHBOURHOODS AND ENVIRONMENT
Rochdale Borough Council,d1084096,03/09/2019,"6,300.00",CAR 2000 HEYWOOD LLP,TAXI HIRE,NEIGHBOURHOODS AND ENVIRONMENT
Rochdale Borough Council,d1084101,03/09/2019,"6,300.00",CAR 2000 HEYWOOD LLP,TAXI HIRE,NEIGHBOURHOODS AND ENVIRONMENT
Rochdale Borough Council,d1084116,03/09/2019,"5,200.00",CAR 2000 HEYWOOD LLP,TAXI HIRE,NEIGHBOURHOODS AND ENVIRONMENT
Rochdale Borough Council,d3002439,03/09/2019,"2,630,153.74",BALFOUR BEATTY LIVING PLACES,TRANSACTIONS-EXPENDITURE,PROPERTY AND HIGHWAYS
Rochdale Borough Council,e1028707,03/09/2019,"50,460.00",WITHERSLACK INTEGRATED PROVISION,OTHER LA`S - SEN PROVISION,EARLY HELP AND SCHOOLS
Rochdale Borough Council,d2001719,03/09/2019,"36,492.00",YOTTA LIMITED,SOFTWARE,NEIGHBOURHOODS AND ENVIRONMENT
Rochdale Borough Council,e1028703,03/09/2019,"33,275.62",BIRTENSHAW HALL SCHOOL,OTHER LA`S - SEN PROVISION,EARLY HELP AND SCHOOLS
Rochdale Borough Council,e1028705,03/09/2019,"31,020.00",RAISE THE YOUTH FOUNDATION CIC,OTHER LA`S - SEN PROVISION,EARLY HELP AND SCHOOLS
Rochdale Borough Council,e1028702,03/09/2019,"25,261.26",BIRTENSHAW HALL SCHOOL,OTHER LA`S - SEN PROVISION,EARLY HELP AND SCHOOLS
Rochdale Borough Council,r1002231,03/09/2019,"25,193.38",BRAHM FUNDCO 2 LTD,PFI SCHEMES RPI,ECONOMY DIRECTORATE
Rochdale Borough Council,e1028704,03/09/2019,"18,549.08",BIRTENSHAW HALL SCHOOL,TRAVELLING GENERAL EXPENSES,EARLY HELP AND SCHOOLS
Rochdale Borough Council,d1084100,03/09/2019,"9,073.86",ROCHDALE HOUSING INITIATIVE,CAPITAL SALARIES,NEIGHBOURHOODS AND ENVIRONMENT
Rochdale Borough Council,e1028701,03/09/2019,"6,620.00",THE BLUE COAT SCHOOL,OTHER EST - SEN PROVISION,EARLY HELP AND SCHOOLS
Rochdale Borough Council,d1084122,03/09/2019,"5,505.00",J T SAWYER AND CO LIMITED,MATERIAL - GENERAL,NEIGHBOURHOODS AND ENVIRONMENT
Rochdale Borough Council,d1084105,03/09/2019,"5,293.66",DIRECT TYRE MANAGEMENT LTD,TYRES,NEIGHBOURHOODS AND ENVIRONMENT
Rochdale Borough Council,e1028708,04/09/2019,"61,683.96",BIRTENSHAW HALL SCHOOL,OTHER LA`S - SEN PROVISION,EARLY HELP AND SCHOOLS
Rochdale Borough Council,d2001731,04/09/2019,"39,363.56",ORACLE CORPORATION UK LTD,SOFTWARE,NEIGHBOURHOODS AND ENVIRONMENT
Rochdale Borough Council,d3002443,04/09/2019,"22,210.00",WILDE CONSULTING ENGINEERS,ROADWORKS,PROPERTY AND HIGHWAYS
Rochdale Borough Council,x1018391,04/09/2019,"10,017.91",ROSS CARE,EQUIPMENT - GENERAL,EARLY HELP AND SCHOOLS
Rochdale Borough Council,d1084137,04/09/2019,"9,980.60",H BELL AND SONS ROCHDALE LTD,MINOR BUILDING WORKS,PROPERTY AND HIGHWAYS
Rochdale Borough Council,d1084136,04/09/2019,"8,610.83",H BELL AND SONS ROCHDALE LTD,MINOR BUILDING WORKS,PROPERTY AND HIGHWAYS
Rochdale Borough Council,d1084151,05/09/2019,"12,600.00",STREAMLINE TAXIS,TAXI HIRE,NEIGHBOURHOODS AND ENVIRONMENT
Rochdale Borough Council,e1028722,05/09/2019,"708,108.22",AXIOM EDUCATION ROCHDALE LIMITED,PFI SCHEMES RPIX,EARLY HELP AND SCHOOLS
Rochdale Borough Council,e1028712,05/09/2019,"33,600.00",POSITIVE STEPS,EXTERNALLY MANAGED FUNDS,EARLY HELP AND SCHOOLS
Rochdale Borough Council,e1028723,05/09/2019,"24,209.55",AXIOM EDUCATION ROCHDALE LIMITED,MEALS,EARLY HELP AND SCHOOLS
Rochdale Borough Council,s1025120,05/09/2019,"8,135.80",UPS BUILDING AND MAINTENANCE LTD,MINOR BUILDING WORKS,ADULT CARE LCO FUNCTIONS
Rochdale Borough Council,d3002455,05/09/2019,"7,500.00",EQUITA LIMITED,TRANSACTIONS-EXPENDITURE,NEIGHBOURHOODS AND ENVIRONMENT
Rochdale Borough Council,d3002452,05/09/2019,"6,237.00",METDESK LTD,REPAIRS & ALTS OF BUILDINGS,PROPERTY AND HIGHWAYS
Rochdale Borough Council,x1018430,05/09/2019,"6,000.00",ROCHDALE PARENT CARERS,HOME CARE - CHILDRENS SERVICES,EARLY HELP AND SCHOOLS
Rochdale Borough Council,d1084156,05/09/2019,"5,481.73",ROCHDALE TOWN CENTRE MANAGEMENT LTD,GRANTS TO THE NON VOLUNTARY SECTOR,ECONOMY DIRECTORATE
Rochdale Borough Council,s1025114,05/09/2019,"5,344.14",UPS BUILDING AND MAINTENANCE LTD,MINOR BUILDING WORKS,ADULT CARE LCO FUNCTIONS
Rochdale Borough Council,s1025116,05/09/2019,"5,121.07",UPS BUILDING AND MAINTENANCE LTD,MINOR BUILDING WORKS,ADULT CARE LCO FUNCTIONS
Rochdale Borough Council,d3002456,05/09/2019,"5,120.00",LINK4LIFE CHARITY,MINOR BUILDING WORKS,PROPERTY AND HIGHWAYS
Rochdale Borough Council,e1028739,06/09/2019,"41,144.00",ROSSENDALE SCHOOL PRIORY,OTHER LA`S - SEN PROVISION,EARLY HELP AND SCHOOLS
Rochdale Borough Council,e1028735,06/09/2019,"33,600.00",POSITIVE STEPS,EXTERNALLY MANAGED FUNDS,EARLY HELP AND SCHOOLS
Rochdale Borough Council,e1028732,06/09/2019,"30,750.00",BRIGHT FUTURES SCHOOL LTD,OTHER LA`S - SEN PROVISION,EARLY HELP AND SCHOOLS
Rochdale Borough Council,e1028731,06/09/2019,"14,250.00",KEYS  GROUP PCE HOLDINGS LTD,OTHER LA`S - SEN PROVISION,EARLY HELP AND SCHOOLS
Rochdale Borough Council,d1084166,06/09/2019,"9,000.00",THE UNIVERSITY OF SALFORD,TRAINING-QUALIFICATION,NEIGHBOURHOODS AND ENVIRONMENT
Rochdale Borough Council,ph103881,09/09/2019,"17,133.13",SAFENET DOMESTIC ABUSE SERVICE,PH OTHER CONTRACTS,PUBLIC HEALTH
Rochdale Borough Council,r1002233,09/09/2019,"11,625.00",NOMAD CLAN CO UK,CONSULTANTS FEES,ECONOMY DIRECTORATE
Rochdale Borough Council,f1008290,09/09/2019,"8,192.52",ALPHATECH PRINT AND DATA SERVICES LTD,PRINTING & STATIONERY,RESOURCES
Rochdale Borough Council,d1084198,10/09/2019,"9,900.00",STREAMLINE TAXIS,TAXI HIRE,NEIGHBOURHOODS AND ENVIRONMENT
Rochdale Borough Council,d1084207,10/09/2019,"6,240.00",GLOBECAR LTD,TAXI HIRE,NEIGHBOURHOODS AND ENVIRONMENT
Rochdale Borough Council,d1084201,10/09/2019,"5,000.00",MIDDLETON CARS,TAXI HIRE,NEIGHBOURHOODS AND ENVIRONMENT
Rochdale Borough Council,e1028750,10/09/2019,"420,219.63",INSPIREDSPACES ROCHDALE PROJECTCO2 LTD,PFI SCHEMES RPIX,EARLY HELP AND SCHOOLS
Rochdale Borough Council,s1025141,10/09/2019,"93,918.86",ROSS CARE,CONTRACTS,BETTER CARE FUND POOLED BUDGET
Rochdale Borough Council,d3002469,10/09/2019,"43,976.70",CORPS,MINOR BUILDING WORKS,ECONOMY DIRECTORATE
Rochdale Borough Council,d3002474,10/09/2019,"32,850.00",AECOM LIMITED,MINOR BUILDING WORKS,PROPERTY AND HIGHWAYS
Rochdale Borough Council,e1028745,10/09/2019,"31,282.34",THE TOGETHER TRUST,OTHER LA`S - SEN PROVISION,EARLY HELP AND SCHOOLS
Rochdale Borough Council,e1028746,10/09/2019,"20,734.00",ROC NORTHWEST LTD,OTHER EST - SEN PROVISION,EARLY HELP AND SCHOOLS
Rochdale Borough Council,s1025140,10/09/2019,"20,460.00",CHERISH UK LTD,HOME CARE - ADULT SERVICES,ADULT CARE LCO FUNCTIONS
Rochdale Borough Council,e1028754,10/09/2019,"19,500.00",BALTIMORE CONSULTING LTD,AGENCY STAFF,EARLY HELP AND SCHOOLS
Rochdale Borough Council,e1028752,10/09/2019,"18,000.00",TIMEOUT CHILDRENS HOMES LTD,OTHER LA`S - SEN PROVISION,EARLY HELP AND SCHOOLS
Rochdale Borough Council,e1028753,10/09/2019,"11,856.67",RED ROSE SCHOOL,OTHER LA`S - SEN PROVISION,EARLY HELP AND SCHOOLS
Rochdale Borough Council,d2001751,10/09/2019,"10,085.96",XMA LIMITED,PURCHASE OF ICT HARDWARE,NEIGHBOURHOODS AND ENVIRONMENT
Rochdale Borough Council,d4002086,10/09/2019,"10,000.00",SHORROCK TRICHEM LTD,MAINTENANCE,NEIGHBOURHOODS AND ENVIRONMENT
Rochdale Borough Council,d2001747,10/09/2019,"7,851.66",ALIGNED ASSETS LIMITED,SOFTWARE,NEIGHBOURHOODS AND ENVIRONMENT
Rochdale Borough Council,d1084192,10/09/2019,"6,220.03",STANDARD FUEL OILS,TRANSACTIONS-EXPENDITURE,NEIGHBOURHOODS AND ENVIRONMENT
Rochdale Borough Council,s1025137,10/09/2019,"5,583.04",UPS BUILDING AND MAINTENANCE LTD,MINOR BUILDING WORKS,ADULT CARE LCO FUNCTIONS
Rochdale Borough Council,d4002088,10/09/2019,"5,000.00",THE PROTON GROUP LIMITED,CLEANING MATERIALS,NEIGHBOURHOODS AND ENVIRONMENT
Rochdale Borough Council,d1084226,11/09/2019,"9,500.00",STREAMLINE TAXIS,TAXI HIRE,NEIGHBOURHOODS AND ENVIRONMENT
Rochdale Borough Council,d1084227,11/09/2019,"7,500.00",STREAMLINE TAXIS,TAXI HIRE,NEIGHBOURHOODS AND ENVIRONMENT
Rochdale Borough Council,d1084224,11/09/2019,"7,100.00",MIDDLETON CARS,TAXI HIRE,NEIGHBOURHOODS AND ENVIRONMENT
Rochdale Borough Council,d1084223,11/09/2019,"5,200.00",STREAMLINE TAXIS,TAXI HIRE,NEIGHBOURHOODS AND ENVIRONMENT
Rochdale Borough Council,e1028767,11/09/2019,"346,579.70",INSPIREDSPACES ROCHDALE PROJECT CO1 LTD,PFI SCHEMES RPIX,EARLY HELP AND SCHOOLS
Rochdale Borough Council,f1008299,11/09/2019,"93,796.30",MANCHESTER CITY COUNCIL,PROFESSIONAL FEES,RESOURCES
Rochdale Borough Council,d3002475,11/09/2019,"16,452.37",LINK4LIFE CHARITY,MINOR BUILDING WORKS,PROPERTY AND HIGHWAYS
Rochdale Borough Council,x1018456,11/09/2019,"6,500.00",INTERCOUNTRY ADOPTION CENTRE,FEES / COMMISSION,CHILDREN�S SOCIAL CARE
Rochdale Borough Council,d1084219,11/09/2019,"6,000.00",LANES GROUP PLC,MAINTENANCE,NEIGHBOURHOODS AND ENVIRONMENT
Rochdale Borough Council,d3002490,12/09/2019,"918,291.57",C E S LTD,MINOR BUILDING WORKS,EARLY HELP AND SCHOOLS
Rochdale Borough Council,d3002488,12/09/2019,"97,367.02",H BELL AND SONS ROCHDALE LTD,MINOR BUILDING WORKS,EARLY HELP AND SCHOOLS
Rochdale Borough Council,d3002489,12/09/2019,"78,408.45",F S MOULT AND SON,MINOR BUILDING WORKS,EARLY HELP AND SCHOOLS
Rochdale Borough Council,d1084240,12/09/2019,"21,450.00",DOBSON UK LTD,CONTRACTS,NEIGHBOURHOODS AND ENVIRONMENT
Rochdale Borough Council,d3002486,12/09/2019,"16,452.37",LINK4LIFE TRADING,MINOR BUILDING WORKS,PROPERTY AND HIGHWAYS
Rochdale Borough Council,d3002487,12/09/2019,"16,452.37",LINK4LIFE TRADING,MINOR BUILDING WORKS,PROPERTY AND HIGHWAYS
Rochdale Borough Council,d3002484,12/09/2019,"5,317.78",FRS ROOFING SERVICES LIMITED,MINOR BUILDING WORKS,PROPERTY AND HIGHWAYS
Rochdale Borough Council,s1025144,12/09/2019,"5,238.00",STANNAH LIFT SERVICES LTD,MINOR BUILDING WORKS,ADULT CARE LCO FUNCTIONS
Rochdale Borough Council,ph103889,13/09/2019,"40,311.00",PENNINE CARE NHS,PH PENNINE CARE CONTRACT,PUBLIC HEALTH
Rochdale Borough Council,d1084253,13/09/2019,"19,490.00",BARTEC AUTO ID LTD,EQUIPMENT - GENERAL,NEIGHBOURHOODS AND ENVIRONMENT
Rochdale Borough Council,ph103887,13/09/2019,"11,335.03",ROCHDALE HOUSING INITIATIVE,EQUIPMENT - GENERAL,PUBLIC HEALTH
Rochdale Borough Council,d3002492,13/09/2019,"5,885.00",ROAD SAFETY SERVICES LIMITED,ACTIVITIES,NEIGHBOURHOODS AND ENVIRONMENT
Rochdale Borough Council,e1028776,13/09/2019,"5,000.00",WHITEGATE NW LTD,"CLOTHES, UNIFORM AND LAUNDRY",EARLY HELP AND SCHOOLS
Rochdale Borough Council,e1028778,13/09/2019,"5,000.00",WHITEGATE NW LTD,"CLOTHES, UNIFORM AND LAUNDRY",EARLY HELP AND SCHOOLS
Rochdale Borough Council,d3002495,16/09/2019,"73,015.00",JACKSON JACKSON AND SONS LTD,MINOR BUILDING WORKS,PROPERTY AND HIGHWAYS
Rochdale Borough Council,r1002236,16/09/2019,"47,148.24",ROCHDALE DEVELOPMENT AGENCY,CONTRACTED SERVICES,ECONOMY DIRECTORATE
Rochdale Borough Council,d1084280,16/09/2019,"27,727.00",SSI SCHAEFER LIMITED,PURCHASE OF FURNITURE AND EQUIPMENT,NEIGHBOURHOODS AND ENVIRONMENT
Rochdale Borough Council,e1028788,16/09/2019,"10,000.00",RECLAIM PROJECT LTD,CONTRACTED SERVICES,EARLY HELP AND SCHOOLS
Rochdale Borough Council,d2001772,16/09/2019,"7,000.00",KHIPU NETWORKS LTD,COMMUNICATION AND COMPUTING - GENERAL,NEIGHBOURHOODS AND ENVIRONMENT
Rochdale Borough Council,d3002498,16/09/2019,"6,000.00",JRB ENVIRONMENTAL DESIGN LTD,MINOR BUILDING WORKS,EARLY HELP AND SCHOOLS
Rochdale Borough Council,d1084306,17/09/2019,"6,200.00",CONNECT CARS MIDDLETON LIMITED,TAXI HIRE,NEIGHBOURHOODS AND ENVIRONMENT
Rochdale Borough Council,d1084305,17/09/2019,"5,000.00",CONNECT CARS MIDDLETON LIMITED,TAXI HIRE,NEIGHBOURHOODS AND ENVIRONMENT
Rochdale Borough Council,x1018474,17/09/2019,"114,011.24",BOLTON MBC,FEES / COMMISSION,CHILDREN�S SOCIAL CARE
Rochdale Borough Council,d3002504,17/09/2019,"31,428.00",FW SHERRATT LTD,ROADWORKS,PROPERTY AND HIGHWAYS
Rochdale Borough Council,d3002503,17/09/2019,"30,000.00",FW SHERRATT LTD,ROADWORKS,PROPERTY AND HIGHWAYS
Rochdale Borough Council,ph103895,17/09/2019,"14,470.00",TURNING POINT,PH OTHER CONTRACTS,PUBLIC HEALTH
Rochdale Borough Council,r1002240,17/09/2019,"10,000.00",GIFTED PHILANTHROPY LTD,CONSULTANTS FEES,ECONOMY DIRECTORATE
Rochdale Borough Council,ph103894,17/09/2019,"9,698.00",TURNING POINT,CONTRACTED SERVICES,PUBLIC HEALTH
Rochdale Borough Council,d1084299,17/09/2019,"8,914.66",NORTHGATE VEHICLE HIRE LIMITED,TRANSACTIONS-EXPENDITURE,NEIGHBOURHOODS AND ENVIRONMENT
Rochdale Borough Council,d3002501,17/09/2019,"5,580.00",JRB ENVIRONMENTAL DESIGN LTD,MINOR BUILDING WORKS,EARLY HELP AND SCHOOLS
Rochdale Borough Council,d1084327,18/09/2019,"6,500.00",COZY CARS,TAXI HIRE,NEIGHBOURHOODS AND ENVIRONMENT
Rochdale Borough Council,d3002509,18/09/2019,"419,476.42",COMMUNITY LIGHTING PARTNERSHIP ROCHDALE LTD,PFI SCHEMES RPIX,PROPERTY AND HIGHWAYS
Rochdale Borough Council,d1084326,18/09/2019,"19,717.04",JAAMA LTD,EQUIPMENT - GENERAL,NEIGHBOURHOODS AND ENVIRONMENT
Rochdale Borough Council,d2001784,18/09/2019,"14,359.00",UPDATA INFRASTRUCTURE UK LTD,TELEPHONE EXPENDITURE,NEIGHBOURHOODS AND ENVIRONMENT
Rochdale Borough Council,d3002507,18/09/2019,"11,370.00",GROUNDWORK LANDSCAPES LIMITED,MINOR BUILDING WORKS,EARLY HELP AND SCHOOLS
Rochdale Borough Council,d1084323,18/09/2019,"7,265.85",JAAMA LTD,EQUIPMENT - GENERAL,NEIGHBOURHOODS AND ENVIRONMENT
Rochdale Borough Council,d1084336,19/09/2019,"36,092.00",STANDARD FUEL OILS,TRANSACTIONS-EXPENDITURE,NEIGHBOURHOODS AND ENVIRONMENT
Rochdale Borough Council,f1008322,19/09/2019,"25,326.06",H BELL AND SONS ROCHDALE LTD,TRANSACTIONS-EXPENDITURE,RESOURCES
Rochdale Borough Council,d1084337,19/09/2019,"12,311.00",VICTIM SUPPORT,PROJECTS,NEIGHBOURHOODS AND ENVIRONMENT
Rochdale Borough Council,d1084340,19/09/2019,"5,880.00",LUBBE & SONS LTD,"TREES, SHRUBS, PLANTS",NEIGHBOURHOODS AND ENVIRONMENT
Rochdale Borough Council,r1002242,19/09/2019,"5,279.61",ROCHDALE DEVELOPMENT AGENCY,MARKETING EXPENDITURE,ECONOMY DIRECTORATE
Rochdale Borough Council,d2001787,20/09/2019,"80,000.00",PHOENIX SOFTWARE LIMITED,ACTIVITIES,NEIGHBOURHOODS AND ENVIRONMENT
Rochdale Borough Council,d3002517,20/09/2019,"42,283.00",AECOM LIMITED,ROADWORKS,PROPERTY AND HIGHWAYS
Rochdale Borough Council,d3002518,20/09/2019,"36,981.29",WSP LTD UK,ROADWORKS,PROPERTY AND HIGHWAYS
Rochdale Borough Council,e1028835,20/09/2019,"11,442.00",WHITWORTH COMMUNITY HIGH SCHOOL,OTHER EST - SEN PROVISION,EARLY HELP AND SCHOOLS
Rochdale Borough Council,ph103902,20/09/2019,"9,713.00",KENYON BLOCK CONSULTANTS LTD,AGENCY STAFF,NEIGHBOURHOODS AND ENVIRONMENT
Rochdale Borough Council,ph103901,20/09/2019,"8,880.00",KENYON BLOCK CONSULTANTS LTD,AGENCY STAFF,NEIGHBOURHOODS AND ENVIRONMENT
Rochdale Borough Council,e1028839,22/09/2019,"92,403.00",THE TOGETHER TRUST,OTHER LA`S - SEN PROVISION,EARLY HELP AND SCHOOLS
Rochdale Borough Council,d4002128,22/09/2019,"17,000.00",FOREST FUELS LTD,ENERGY COSTS,NEIGHBOURHOODS AND ENVIRONMENT
Rochdale Borough Council,d1084361,23/09/2019,"8,916.00",EURO LABEL PRINTERS LIMITED,PUBLICITY,NEIGHBOURHOODS AND ENVIRONMENT
Rochdale Borough Council,s1025175,23/09/2019,"8,025.08",UPS BUILDING AND MAINTENANCE LTD,MINOR BUILDING WORKS,ADULT CARE LCO FUNCTIONS
Rochdale Borough Council,ph103906,23/09/2019,"6,617.93",BRAHM FUNDCO 1 LTD,RENTS,PUBLIC HEALTH
Rochdale Borough Council,s1025178,23/09/2019,"5,851.57",UPS BUILDING AND MAINTENANCE LTD,MINOR BUILDING WORKS,ADULT CARE LCO FUNCTIONS
Rochdale Borough Council,s1025181,23/09/2019,"5,703.95",UPS BUILDING AND MAINTENANCE LTD,MINOR BUILDING WORKS,ADULT CARE LCO FUNCTIONS
Rochdale Borough Council,s1025180,23/09/2019,"5,496.44",UPS BUILDING AND MAINTENANCE LTD,MINOR BUILDING WORKS,ADULT CARE LCO FUNCTIONS
Rochdale Borough Council,s1025176,23/09/2019,"5,080.60",UPS BUILDING AND MAINTENANCE LTD,MINOR BUILDING WORKS,ADULT CARE LCO FUNCTIONS
Rochdale Borough Council,s1025174,23/09/2019,"5,056.00",ASTOR BANNERMAN MEDICAL LTD,MINOR BUILDING WORKS,ADULT CARE LCO FUNCTIONS
Rochdale Borough Council,s1025182,23/09/2019,"5,023.53",UPS BUILDING AND MAINTENANCE LTD,MINOR BUILDING WORKS,ADULT CARE LCO FUNCTIONS
Rochdale Borough Council,d1084385,24/09/2019,"10,500.00",ROCHDALE TOWN TAXIS LTD,TAXI HIRE,NEIGHBOURHOODS AND ENVIRONMENT
Rochdale Borough Council,d1084382,24/09/2019,"6,500.00",STREAMLINE TAXIS,TAXI HIRE,NEIGHBOURHOODS AND ENVIRONMENT
Rochdale Borough Council,d2001798,24/09/2019,"313,740.00",CDW LTD,ACTIVITIES,NEIGHBOURHOODS AND ENVIRONMENT
Rochdale Borough Council,d3002532,24/09/2019,"10,165.65",GROUNDWORK LANDSCAPES LIMITED,MINOR BUILDING WORKS,EARLY HELP AND SCHOOLS
Rochdale Borough Council,e1028848,24/09/2019,"10,126.60",AXIOM EDUCATION ROCHDALE LIMITED,"DEV CAP - NEW CONSTRUCTION,CONVERSION",EARLY HELP AND SCHOOLS
Rochdale Borough Council,d1084378,24/09/2019,"10,000.00",THE CAMPAIGN COMPANY LTD,EVENTS,NEIGHBOURHOODS AND ENVIRONMENT
Rochdale Borough Council,s1025193,24/09/2019,"6,450.71",FUTURE DIRECTIONS CIC,SOCIAL SERVICES OTHER,ADULT CARE LCO FUNCTIONS
Rochdale Borough Council,s1025194,24/09/2019,"6,334.46",FUTURE DIRECTIONS CIC,SOCIAL SERVICES OTHER,ADULT CARE LCO FUNCTIONS
Rochdale Borough Council,s1025192,24/09/2019,"6,242.63",FUTURE DIRECTIONS CIC,SOCIAL SERVICES OTHER,ADULT CARE LCO FUNCTIONS
Rochdale Borough Council,s1025195,24/09/2019,"5,345.47",UPS BUILDING AND MAINTENANCE LTD,MINOR BUILDING WORKS,ADULT CARE LCO FUNCTIONS
Rochdale Borough Council,d1084379,24/09/2019,"5,311.90",PARTNERSHIPS FOR BETTER BUSINESS LTD,ACTIVITIES,ECONOMY DIRECTORATE
Rochdale Borough Council,d3002540,25/09/2019,"34,275.20",JACKSON JACKSON AND SONS LTD,MINOR BUILDING WORKS,PROPERTY AND HIGHWAYS
Rochdale Borough Council,r1002243,25/09/2019,"27,000.00",WSP LTD UK,CONSULTANTS FEES,ECONOMY DIRECTORATE
Rochdale Borough Council,e1028857,25/09/2019,"20,572.00",ROSSENDALE SCHOOL PRIORY,OTHER LA`S - SEN PROVISION,EARLY HELP AND SCHOOLS
Rochdale Borough Council,x1018522,25/09/2019,"20,000.00",HAMPTONS RESOURCING LTD,AGENCY STAFF,CHILDREN�S SOCIAL CARE
Rochdale Borough Council,d3002533,25/09/2019,"10,881.00",METRIC GROUP LTD,EQUIPMENT - GENERAL,PROPERTY AND HIGHWAYS
Rochdale Borough Council,d1084401,25/09/2019,"10,000.00",247 HOTEL,ACCOMMODATION,NEIGHBOURHOODS AND ENVIRONMENT
Rochdale Borough Council,s1025198,25/09/2019,"5,718.63",UPS BUILDING AND MAINTENANCE LTD,MINOR BUILDING WORKS,ADULT CARE LCO FUNCTIONS
Rochdale Borough Council,f1008337,26/09/2019,"94,380.00",TRAFFORD MBC,OTHER LOCAL AUTHORITIES,RESOURCES
Rochdale Borough Council,d3002543,26/09/2019,"13,500.00",TRANSPORT FOR GREATER MANCHESTER,MINOR BUILDING WORKS,ECONOMY DIRECTORATE
Rochdale Borough Council,d1084425,26/09/2019,"6,737.60",YOUNG AND CO,DRAINAGE AND SEWERS,ECONOMY DIRECTORATE
Rochdale Borough Council,ph103913,26/09/2019,"5,796.00",GREATER MANCHESTER MENTAL HEALTH NHS,PH OTHER CONTRACTS,PUBLIC HEALTH
Rochdale Borough Council,ph103911,26/09/2019,"5,790.00",ACORN RECOVERY PROJECTS,PH OTHER CONTRACTS,PUBLIC HEALTH
Rochdale Borough Council,s1025201,26/09/2019,"5,769.06",UPS BUILDING AND MAINTENANCE LTD,MINOR BUILDING WORKS,ADULT CARE LCO FUNCTIONS
Rochdale Borough Council,e1028875,27/09/2019,"80,826.00",THE TOGETHER TRUST,OTHER LA`S - SEN PROVISION,EARLY HELP AND SCHOOLS
Rochdale Borough Council,d1084436,27/09/2019,"67,500.00",ROCHDALE DEVELOPMENT AGENCY,CAPITAL SALARIES,ECONOMY DIRECTORATE
Rochdale Borough Council,e1028878,27/09/2019,"40,926.80",AXIOM EDUCATION ROCHDALE LIMITED,"DEV CAP - NEW CONSTRUCTION,CONVERSION",EARLY HELP AND SCHOOLS
Rochdale Borough Council,e1028870,27/09/2019,"23,313.32",THE ROYAL NATIONAL COLLEGE FOR THE BLIND,OTHER EST - SEN PROVISION,EARLY HELP AND SCHOOLS
Rochdale Borough Council,ph103915,27/09/2019,"11,565.71",TURNING POINT,PH OTHER CONTRACTS,PUBLIC HEALTH
Rochdale Borough Council,ph103916,27/09/2019,"9,821.00",TURNING POINT,CONTRACTED SERVICES,PUBLIC HEALTH
Rochdale Borough Council,d2001805,27/09/2019,"6,258.00",VODAFONE LTD,TELEPHONE EXPENDITURE,NEIGHBOURHOODS AND ENVIRONMENT
Rochdale Borough Council,s1025206,27/09/2019,"5,644.99",UPS BUILDING AND MAINTENANCE LTD,MINOR BUILDING WORKS,ADULT CARE LCO FUNCTIONS
Rochdale Borough Council,s1025213,27/09/2019,"5,595.60",UPS BUILDING AND MAINTENANCE LTD,MINOR BUILDING WORKS,ADULT CARE LCO FUNCTIONS
Rochdale Borough Council,e1028871,27/09/2019,"5,471.24",ROC NORTHWEST LTD,OTHER LA`S - SEN PROVISION,EARLY HELP AND SCHOOLS
Rochdale Borough Council,s1025205,27/09/2019,"5,343.62",UPS BUILDING AND MAINTENANCE LTD,MINOR BUILDING WORKS,ADULT CARE LCO FUNCTIONS
Rochdale Borough Council,s1025215,27/09/2019,"5,136.69",UPS BUILDING AND MAINTENANCE LTD,MINOR BUILDING WORKS,ADULT CARE LCO FUNCTIONS
Rochdale Borough Council,x1018546,30/09/2019,"9,000.00",ADOPTION MATTERS NORTHWEST,ADOPTION PAYMENTS,CHILDREN�S SOCIAL CARE
Rochdale Borough Council,r1002253,30/09/2019,"10,731.00",DONALD INSALL ASSOCIATES,MINOR BUILDING WORKS,ECONOMY DIRECTORATE
